Workbook

Sheet Sıvılaşma Potansiyeli Analizi
M2: TÜRKİYE BİNA DEPREM YÖNETMELİĞİ (2018) İLE UYUMLU BASİTLEŞTİRİLMİŞ ZEMİN SIVILAŞMA POTANSİYELİ ANALİZİ
M5: PROJE ADI: | S5: ANKARA ÇANKAYA İLÇESİ | DJ5: Sayfa: | DP5: 1/2
M6: Ada No: | S6: 145 | W6: Parsel Sorgu | Z6: Koordinatlar : | AL6: X | AU6: Y | BF6: Kot | BN6: Datum | BX6: Yerel Zemin Sınıfı | CM6: Mw | CY6: DTS [Deprem tasarım sınıfı] | DJ6: SDS | DP6: P.G.A.
B7: TMMOB JEOLOJİ MÜHENDİSLERİ ODASI | M7: Parsel No: | S7: 24 | AL7: 1234567.85 | AU7: 12345678.85 | BF7: 865.3 | BN7: ITRF-6°
M8: Sondaj Kuyu No: | S8: SK-3 | Z8: Yeraltı Suyu Seviyesi : | AP8: 2 | AX8: SPT Klavuz Tij Boyu (yerden): | BQ8: 1 | BX8: ZD | CM8: 7 | CY8: DTS - 2 | DJ8: 0.75 | DP8: =$DJ$8*0.4 -> 0.3
M9: SPT Verileri : | S9: Numune Alıcı Tipi : | Z9: Standart (iç tüpü olan) | AN9: Sondaj Delgi Çapı : | BE9: Çap 65mm-115mm arasında | BU9: Tokmak Tipi : | CF9: Otomatik darbeli tokmak | CW9: Enerji Oranı (%) : | DK9: 60
B11: Arazi ve Laboratuvar Deneylerinden Alınan Veriler [Veri girişi ve seçimi yapınız] | V11: Ham SPT-N Verilerinin Düzeltilmesi [TBDY-2018, Madde 16B.2'e göre] | BE11: Sıvılaşma Direncinin Hesabı | BQ11: Deprem Kayma Gerilmesi | BY11: Sıvılaşmaya Karşı Güvenlik Koşulu | CM11: Sıvılaşma Potansiyeli (Sondaj Noktalarındaki) Bilgi amaçlı verilmiştir. TBDY-2018'de yer almamaktadır.
CM12: Iwasaki vd. [1982] | DD12: Sönmez ve Gökçeoğlu [2005]
B13: Sıra No | E13: Derinlik (m) | F13: SPT - N [darbe/30 cm] | G13: Zemin Tipi (USCS) | L13: Zemin Tipi (TS-EN ISO 14688-2) | Q13: Plastisite İndisi (PI) | R13: Kil İçeriği (%) | S13: γn (kN/m3) | T13: γdoygun (kN/m3) | U13: İnce Dane İçeriği (IDI) (%) | V13: Toplam gerilme σvo (kN/m2) | Z13: Efektif gerilme σ'vo (kN/m2) | AD13: Cn | AG13: Cr | AJ13: Cs | AM13: Cb | AP13: Ce | AS13: N1,60 | AW13: N1,60f | BE13: CRRM=7,5 | BJ13: CM | BM13: τR | BQ13: rd | BU13: τdeprem | BY13: TBDY-2018'e göre FSL = τR /τdeprem ≥ 1.10
AD14: Örtü Yükü Düzeltme Katsayısı | AG14: Tij Boyu Düzeltme Katsayısı | AJ14: Numune Alıcı Tipi Düzeltme Katsayısı | AM14: Sondaj Delgi Çapı Düzeltme Katsayısı | AP14: Enerji Oranı Düzeltme Katsayısı | AS14: Düzeltilmiş SPT-N Değeri | AY14: İnce Dane İçeriği Düzeltmesi Yapılmış | BE14: Moment büyüklüğü 7.5 olan depr. karşı gelen tekrarlı dayanımı oranı | BJ14: Moment Büyüklüğü Düzeltme Katsayısı | BM14: Sıvılaşma Direnci τR=CRRM7.5·CM·σvo' | BQ14: Gerilme Azaltma Katsayısı | BU14: Zeminde Depremden Kaynaklanan Ort. Tekrarlı Kayma Geril. | CM14: Sıvılaşmaya Yatkın Tabaka Kalınlığı, m | CQ14: W(z) | CU14: F(z) | CY14: Sıvılaşma Potansiyeli İndeksi, LI | DD14: Sıvılaşmaya Yatkın Tabaka Kalınlığı, m | DH14: W(z) | DL14: PL(z) | DP14: Sıvılaşma Şiddeti İndeksi, LS
AW15: α | AX15: β
BY16: FSL
B17: -1- | E17: -2- | F17: -3- | G17: -4- | L17: -5- | Q17: -6- | R17: -7- | S17: -8- | T17: -9- | U17: -10- | V17: -11- | Z17: -12- | AD17: -13- | AG17: -14- | AJ17: -15- | AM17: -16- | AP17: -17- | AS17: -18- | AW17: -19- | BE17: -20- | BJ17: -21- | BM17: -22- | BQ17: -23- | BU17: -24- | BY17: -25- | CM17: -26- | CQ17: -27- | CU17: -28- | CY17: -29- | DD17: -30- | DH17: -31- | DL17: -32- | DP17: -33-
B18: =IF(E18>0,"1-","") -> 1- | E18: 1.1 | F18: 8 | G18: CH | S18: 18 | T18: 20 | V18: =IF(E18="","",IF(E18<$AP$8,E18*S18,(($AP$8-0)*S18+(E18-$AP$8)*T18))) -> 19.8 | Z18: =(IF(E18="","",IF($E$34<E18,"",(V18-MAX($E$18-$AP$8,0)*9.81)))) -> 19.8 | AD18: =IF(E18="","",IF(F18="R","-",IF(E18<$AP$8,"-",IF(9.78*SQRT(1/Z18)<=1.7,(9.78*SQRT(1/Z18)),IF(9.78*SQRT(1/Z18)>1.7,1.7,1))))) -> - | AG18: =IF(E18="","",IF(F18="r","-",IF(E18<$AP$8,"-",IF((E18+$BQ$8)<4,0.75,IF((E18+$BQ$8)<6,0.85,IF((E18+$BQ$8)<10,0.95,1)))))) -> - | AJ18: =IF(E18="","",IF(F18="r","-",IF(E18<$AP$8,"-",IF($Z$9="Standart (iç tüpü olan)",1,1.2)))) -> - | AM18: =IF(E18="","",IF(F18="r","-",IF(E18<$AP$8,"-",IF($BE$9="Çap 65mm-115mm arasında",1,IF($BE$9="Çap 150mm",1.05,IF($BE$9="Çap 200mm",1.15)))))) -> - | AP18: =IF(F18="","",IF(E18<$AP$8,"-",IF(F18="r","-",$DK$9/60))) -> - | AS18: =IF(E18="","",IF(F18="R","-",IF(E18<$AP$8,"-",IF(PRODUCT(F18,AD18,AG18,AJ18,AM18,AP18)<30,(PRODUCT(F18,AD18,AG18,AJ18,AM18,AP18)),">30")))) -> - | AW18: =IF(E18="","",IF(F18="R","-",IF(U18="","",IF(AS18=">30","-",IF(AS18="","",IF(U18<=5,0,IF(AND(U18>5,U18<35),EXP(1.76-(190/(U18^2))),IF(U18>=35,5)))))))) ->  | AX18: =IF(E18="","",IF(F18="R","-",IF(U18="","",IF(AS18=">30","-",IF(AS18="","",IF(E18="","",IF(U18<=5,1,IF(AND(U18>5,U18<35),(0.99+(U18^1.5)/1000),IF(U18>=35,1.2))))))))) ->  | AY18: =IF(E18="","",IF(E18<$AP$8,"-",IF(AS18="-","-",IF(AS18=">30","-",IF(U18<=5,AS18,IF(U18>=35,(5+1.2*AS18),((EXP(1.76-(190/(U18^2))))+((0.99+(U18^1.5)/1000)*AS18)))))))) -> - | BE18: =IF(E18="","",IF(AND($CY$8="DTS - 4",R18>20,Q18>10),"-",IF(AND($CY$8="DTS - 4",U18>35,AS18>20),"-",IF(Q18>=12,"-",IF(E18<$AP$8,"-",IF(AS18>30,"-",IF(AY18>=34,"-",IF(AS18<30,(1/(34-AY18))+AY18/135+50/(10*AY18+45)^2-1/200,2)))))))) -> - | BJ18: =IF(F18="","",IF(AND($CY$8="DTS - 4",R18>20,Q18>10),"-",IF(AND($CY$8="DTS - 4",U18>35,AS18>20),"-",IF(Q18>=12,"-",IF(E18<$AP$8,"-",IF(AS18>30,"-",IF(AY18>=34,"-",((10^2.24/$CM$8^2.56))))))))) -> - | BM18: =+IF(F18="","",IF(AND($CY$8="DTS - 4",R18>20,Q18>10),"-",IF(AND($CY$8="DTS - 4",U18>35,AS18>20),"-",IF(Q18>=12,"-",IF(E18<$AP$8,"-",IF(AS18>30,"-",IF(AY18>=34,"-",(PRODUCT(BE18,BJ18,Z18))))))))) -> - | BQ18: =IF(F18="","",IF(AND($CY$8="DTS - 4",R18>20,Q18>10),"-",IF(AND($CY$8="DTS - 4",U18>35,AS18>20),"-",IF(Q18>=12,"-",IF(E18<$AP$8,"-",IF(AS18>30,"-",IF(AY18>=34,"-",IF(E18<=9.15,(1-0.00765*E18),IF(E18<=23,(1.174-0.0267*E18),IF(E18<=30,(0.744-0.008*E18),0.5)))))))))) -> - | BU18: =+IF(F18="","",IF(AND($CY$8="DTS - 4",R18>20,Q18>10),"-",IF(AND($CY$8="DTS - 4",U18>35,AS18>20),"-",IF(Q18>=12,"-",IF(E18<$AP$8,"-",IF(AS18>30,"-",IF(AY18>=34,"-",(0.65*V18*0.4*$DJ$8*BQ18)))))))) -> - | BY18: =IF(F18="","",IF(AND($CY$8="DTS - 4",R18>20,Q18>10),"-",IF(AND($CY$8="DTS - 4",U18>35,AS18>20),"-",IF(Q18>=12,"-",IF(E18<$AP$8,"-",IF(AS18>30,"-",IF(AY18>=34,"-",(BM18/BU18)))))))) -> - | CC18: =+IF(F18="","",IF(E18<$AP$8,"YAS yok",IF(AS18>30,"Sıvılaşma Yok",IF(BY18<1.1,"Sıvılaşma Beklenir",IF(BY18="-","Sıvılaşma Yok","Sıvılaşma Yok"))))) -> YAS yok | CM18: =IF(E18="","",IF(BY18>1,"-",IF($AP$8<E18,(E18-$AP$8)+((E19-E18)/2),IF($AP$8>=E19,0,0)))) -> - | CQ18: =+IF(E18="","",IF(BY18="-","-",IF(BY18>=1,"-",10-0.5*E18/2))) -> - | CU18: =+IF(E18="","",IF(BY18="-","-",IF(BY18>=1,"-",(1-BY18)))) -> - | CY18: =+IF(E18="","",IF(BY18="-","-",IF(BY18>=1,"-",CU18*CQ18*CM18))) -> - | DD18: =IF(E18="","",IF(BY18>1.411,"-",IF($AP$8<E18,(E18-$AP$8)+((E19-E18)/2),IF($AP$8>=E19,0,0)))) -> - | DH18: =+IF(E18="","",IF(BY18="-","-",10-0.5*E18/2)) -> - | DL18: =+IF(E18="","",IF(BY18="-","-",IF(BY18<=1.411,(1/(1+(BY18/0.96)^4.5)),0))) -> - | DP18: =+IF(E18="","",IF(BY18="-","-",IF(E18>0,DL18*DH18*DD18,""))) -> -
B19: =IF(E19>0,"2-","") -> 2- | E19: 1.8 | F19: 12 | G19: GC | S19: 16.5 | T19: 20 | U19: 5 | V19: =IF(E18="","",IF(E19<$AP$8,V18+((E19-E18)*S19),IF($AP$8<=E18,V18+((E19-E18)*T19),IF(AND($AP$8>E18,$AP$8<=E19),(V18+(($AP$8-E18)*S19)+(E19-$AP$8)*T19),"-")))) -> 31.35 | Z19: =(IF(E19="","",(V19-MAX(E19-$AP$8,0)*9.81))) -> 31.35 | AD19: =IF(E19="","",IF(F19="R","-",IF(E19<$AP$8,"-",IF(9.78*SQRT(1/Z19)<=1.7,(9.78*SQRT(1/Z19)),IF(9.78*SQRT(1/Z19)>1.7,1.7,1))))) -> - | AG19: - | AJ19: - | AM19: - | AP19: - | AS19: - | AW19: =IF(E19="","",IF(F19="R","-",IF(U19="","",IF(AS19=">30","-",IF(AS19="","",IF(U19<=5,0,IF(AND(U19>5,U19<35),EXP(1.76-(190/(U19^2))),IF(U19>=35,5)))))))) -> 0 | AX19: 1 | AY19: - | BE19: - | BJ19: - | BM19: - | BQ19: - | BU19: =+IF(F19="","",IF(AND($CY$8="DTS - 4",R19>20,Q19>10),"-",IF(AND($CY$8="DTS - 4",U19>35,AS19>20),"-",IF(Q19>=12,"-",IF(E19<$AP$8,"-",IF(AS19>30,"-",IF(AY19>=34,"-",(0.65*V19*0.4*$DJ$8*BQ19)))))))) -> - | BY19: =IF(F19="","",IF(AND($CY$8="DTS - 4",R19>20,Q19>10),"-",IF(AND($CY$8="DTS - 4",U19>35,AS19>20),"-",IF(Q19>=12,"-",IF(E19<$AP$8,"-",IF(AS19>30,"-",IF(AY19>=34,"-",(BM19/BU19)))))))) -> - | CC19: =+IF(F19="","",IF(E19<$AP$8,"YAS yok",IF(AS19>30,"Sıvılaşma Yok",IF(BY19<1.1,"Sıvılaşma Beklenir",IF(BY19="-","Sıvılaşma Yok","Sıvılaşma Yok"))))) -> YAS yok | CM19: =IF(E19="","",IF(BY19>1,"-",IF(E20="",($E$34-E19)+((E19-E18)/2),IF(AND(DD18=0,$AP$8<E19,$AP$8>=E18),((E20-E19)/2)+(E19-$AP$8),((E20-E19)/2)+((E19-E18)/2))))) -> - | CQ19: =+IF(E19="","",IF(OR((E19>20),(BY19>1)),"-",IF(BY19>=1,"-",10-(0.5*(((E19-E18)/2)+E18))))) -> - | CU19: =+IF(E19="","",IF(BY19="-","-",IF(OR((E19>20),(BY19>=1)),"-",(1-BY19)))) -> - | CY19: =+IF(E19="","",IF(BY19="-","-",IF(OR((E19>20),(BY19>=1)),"-",CU19*CQ19*CM19))) -> - | DD19: =IF(E19="","",IF(BY19="-","-",IF(BY19>1.411,"-",IF(E20="",($E$34-E19)+((E19-E18)/2),IF(AND(DD18=0,$AP$8<E19,$AP$8>=E18),((E20-E19)/2)+(E19-$AP$8),((E20-E19)/2)+((E19-E18)/2)))))) -> - | DH19: =+IF(E19="","",IF(OR((E19>20),(BY19>1.411)),"-",10-(0.5*(((E19-E18)/2)+E18)))) -> - | DL19: =+IF(E19="","",IF(BY19="-","-",IF(OR((E19>20),(BY19>1.411)),"-",(1/(1+(BY19/0.96)^4.5))))) -> - | DP19: =+IF(E19="","",IF(BY19="-","-",IF(E19>0,IFERROR(DL19*DH19*DD19,"-")))) -> -
B20: =IF(E20>0,"3-","") -> 3- | E20: 2.6 | F20: 7 | G20: SM | S20: 18 | T20: 20 | U20: 8 | V20: =IF(E19="","",IF(E20<$AP$8,V19+((E20-E19)*S20),IF($AP$8<=E19,V19+((E20-E19)*T20),IF(AND($AP$8>E19,$AP$8<=E20),(V19+(($AP$8-E19)*S20)+(E20-$AP$8)*T20),"-")))) -> 46.95 | Z20: =(IF(E20="","",(V20-MAX(E20-$AP$8,0)*9.81))) -> 41.064 | AD20: 1.526188684 | AG20: 0.75 | AJ20: 1 | AM20: 1 | AP20: 1 | AS20: 8.012490592 | AW20: =IF(E20="","",IF(F20="R","-",IF(U20="","",IF(AS20=">30","-",IF(AS20="","",IF(U20<=5,0,IF(AND(U20>5,U20<35),EXP(1.76-(190/(U20^2))),IF(U20>=35,5)))))))) -> 0.2985702591 | AX20: 1.012627417 | AY20: 8.412237911 | BE20: 0.09939299031 | BJ20: 1.19274888 | BM20: 4.86817325 | BQ20: 0.98011 | BU20: =+IF(F20="","",IF(AND($CY$8="DTS - 4",R20>20,Q20>10),"-",IF(AND($CY$8="DTS - 4",U20>35,AS20>20),"-",IF(Q20>=12,"-",IF(E20<$AP$8,"-",IF(AS20>30,"-",IF(AY20>=34,"-",(0.65*V20*0.4*$DJ$8*BQ20)))))))) -> 8.973152078 | BY20: =IF(F20="","",IF(AND($CY$8="DTS - 4",R20>20,Q20>10),"-",IF(AND($CY$8="DTS - 4",U20>35,AS20>20),"-",IF(Q20>=12,"-",IF(E20<$AP$8,"-",IF(AS20>30,"-",IF(AY20>=34,"-",(BM20/BU20)))))))) -> 0.5425265512 | CC20: Sıvılaşma Beklenir | CM20: 0.8 | CQ20: 8.9 | CU20: 0.4574734488 | CY20: 3.257210955 | DD20: 0.8 | DH20: 8.9 | DL20: 0.9287823112 | DP20: 6.612930056
B21: =IF(E21>0,"4-","") -> 4- | E21: 3.4 | F21: 5 | G21: SC | S21: 18 | T21: 19 | U21: 12 | V21: =IF(E20="","",IF(E21<$AP$8,V20+((E21-E20)*S21),IF($AP$8<=E20,V20+((E21-E20)*T21),IF(AND($AP$8>E20,$AP$8<=E21),(V20+(($AP$8-E20)*S21)+(E21-$AP$8)*T21),"-")))) -> 62.15 | Z21: 48.416 | AD21: 1.405543858 | AG21: 0.85 | AJ21: 1 | AM21: 1 | AP21: 1 | AS21: 5.973561395 | AW21: 1.553570073 | AX21: 1.031569219 | AY21: 7.715712139 | BE21: 0.09354964201 | BJ21: 1.19274888 | BM21: 5.402316869 | BQ21: 0.97399 | BU21: 11.80402831 | BY21: 0.4576672241 | CC21: Sıvılaşma Beklenir | CM21: 2.45 | CQ21: 8.5 | CU21: 0.5423327759 | CY21: 11.29408006 | DD21: 2.45 | DH21: 8.5 | DL21: 0.965562318 | DP21: 20.10783527
B22: =IF(E22>0,"5-","") -> 5- | E22: 7.5 | F22: 10 | G22: CH | S22: 18 | T22: 20 | U22: 10 | V22: =IF(E21="","",IF(E22<$AP$8,V21+((E22-E21)*S22),IF($AP$8<=E21,V21+((E22-E21)*T22),IF(AND($AP$8>E21,$AP$8<=E22),(V21+(($AP$8-E21)*S22)+(E22-$AP$8)*T22),"-")))) -> 144.15 | Z22: 90.195 | AD22: 1.029787518 | AG22: 0.95 | AJ22: 1 | AM22: 1 | AP22: 1 | AS22: =IF(E22="","",IF(F22="R","-",IF(E22<$AP$8,"-",IF(PRODUCT(F22,AD22,AG22,AJ22,AM22,AP22)<30,(PRODUCT(F22,AD22,AG22,AJ22,AM22,AP22)),">30")))) -> 9.782981418 | AW22: 0.8693582354 | AX22: 1.021622777 | AY22: 10.86387488 | BE22: 0.1208138041 | BJ22: 1.19274888 | BM22: 12.99714727 | BQ22: 0.942625 | BU22: 26.49648178 | BY22: 0.4905235109 | CC22: Sıvılaşma Beklenir | CM22: 2.8 | CQ22: 7.275 | CU22: 0.5094764891 | CY22: 10.37803608 | DD22: 2.8 | DH22: 7.275 | DL22: 0.9535391444 | DP22: 19.42359237
B23: =IF(E23>0,"6-","") -> 6- | E23: 9 | F23: 10 | G23: GP-GM | S23: 19 | T23: 20 | V23: 174.15 | Z23: 105.48 | AD23: 0.9522561677 | AG23: 1 | AJ23: 1 | AM23: 1 | AP23: 1 | AS23: =IF(E23="","",IF(F23="R","-",IF(E23<$AP$8,"-",IF(PRODUCT(F23,AD23,AG23,AJ23,AM23,AP23)<30,(PRODUCT(F23,AD23,AG23,AJ23,AM23,AP23)),">30")))) -> 9.522561677 | AY23: 9.522561677 | BE23: 0.1089342603 | BJ23: 1.19274888 | BM23: 13.70514477 | BQ23: 0.93115 | BU23: 31.62115564 | BY23: 0.4334169479 | CC23: Sıvılaşma Beklenir | CM23: 1.5 | CQ23: 5.875 | CU23: 0.5665830521 | CY23: 4.993013147 | DD23: 1.5 | DH23: 5.875 | DL23: 0.9728419707 | DP23: 8.573169867
B24: =IF(E24>0,"7-","") -> 7- | E24: 10.5 | F24: 15 | G24: SM | S24: 19 | T24: 20 | V24: 204.15 | Z24: 120.765 | AD24: 0.8899555421 | AG24: 1 | AJ24: 1 | AM24: 1 | AP24: 1 | AS24: 13.34933313 | AY24: 13.34933313 | BE24: 0.1438779078 | BJ24: 1.19274888 | BM24: 20.72450743 | BQ24: 0.89365 | BU24: 35.57553626 | BY24: 0.5825494036 | CC24: Sıvılaşma Beklenir | CM24: 1.5 | CQ24: 5.125 | CU24: 0.4174505964 | CY24: 3.20915146 | DD24: 1.5 | DH24: 5.125 | DL24: 0.9044637788 | DP24: 6.953065299
B25: =IF(E25>0,"8-","") -> 8- | E25: 12 | F25: 12 | G25: GP-GM | S25: 19 | T25: 20 | V25: 234.15 | Z25: 136.05 | AD25: 0.8384739643 | AG25: 1 | AJ25: 1 | AM25: 1 | AP25: 1 | AS25: 10.06168757 | AY25: 10.06168757 | BE25: 0.1136630733 | BJ25: 1.19274888 | BM25: 18.44450304 | BQ25: 0.8536 | BU25: 38.9747358 | BY25: 0.4732425419 | CC25: Sıvılaşma Beklenir | CM25: 1.5 | CQ25: 4.375 | CU25: 0.5267574581 | CY25: 3.456845819 | DD25: 1.5 | DH25: 4.375 | DL25: 0.9601881115 | DP25: 6.301234482
B26: =IF(E26>0,"9-","") -> 9- | E26: 13.5 | F26: 14 | G26: CH | S26: 19 | T26: 20 | V26: 264.15 | Z26: 151.335 | AD26: 0.7950037263 | AG26: 1 | AJ26: 1 | AM26: 1 | AP26: 1 | AS26: 11.13005217 | AY26: 11.13005217 | BE26: 0.1232170113 | BJ26: 1.19274888 | BM26: 22.24124373 | BQ26: 0.81355 | BU26: 41.90535034 | BY26: 0.5307494997 | CC26: Sıvılaşma Beklenir | CM26: 1.5 | CQ26: 3.625 | CU26: 0.4692505003 | CY26: 2.551549596 | DD26: 1.5 | DH26: 3.625 | DL26: 0.9350446438 | DP26: 5.084305251
B27: =IF(E27>0,"10-","") -> 10- | E27: 15 | F27: 16 | G27: MH | S27: 19 | T27: 20 | V27: 294.15 | Z27: 166.62 | AD27: 0.7576616226 | AG27: 1 | AJ27: 1 | AM27: 1 | AP27: 1 | AS27: =IF(E27="","",IF(F27="R","-",IF(E27<$AP$8,"-",IF(PRODUCT(F27,AD27,AG27,AJ27,AM27,AP27)<30,(PRODUCT(F27,AD27,AG27,AJ27,AM27,AP27)),">30")))) -> 12.12258596 | AY27: 12.12258596 | BE27: 0.1323157338 | BJ27: 1.19274888 | BM27: 26.29587565 | BQ27: 0.7735 | BU27: 44.36737987 | BY27: 0.5926848898 | CC27: Sıvılaşma Beklenir | CM27: 1.5 | CQ27: 2.875 | CU27: 0.4073151102 | CY27: 1.756546413 | DD27: 1.5 | DH27: 2.875 | DL27: 0.8975429092 | DP27: 3.870653796
B28: =IF(E28>0,"11-","") -> 11- | E28: 16.5 | F28: 20 | G28: MH | S28: 19 | T28: 19 | V28: 322.65 | Z28: 180.405 | AD28: 0.728139464 | AG28: 1 | AJ28: 1 | AM28: 1 | AP28: 1 | AS28: =IF(E28="","",IF(F28="R","-",IF(E28<$AP$8,"-",IF(PRODUCT(F28,AD28,AG28,AJ28,AM28,AP28)<30,(PRODUCT(F28,AD28,AG28,AJ28,AM28,AP28)),">30")))) -> 14.56278928 | AY28: 14.56278928 | BE28: 0.1556961566 | BJ28: 1.19274888 | BM28: 33.50236607 | BQ28: 0.73345 | BU28: 46.14629029 | BY28: 0.7260034526 | CC28: Sıvılaşma Beklenir | CM28: 1.5 | CQ28: 2.125 | CU28: 0.2739965474 | CY28: 0.873363995 | DD28: 1.5 | DH28: 2.125 | DL28: 0.7785442981 | DP28: 2.48160995
B29: =IF(E29>0,"12-","") -> 12- | E29: 18 | F29: 22 | G29: MH | S29: 19 | T29: 19 | U29: 14 | V29: 351.15 | Z29: 194.19 | AD29: 0.7018194887 | AG29: 1 | AJ29: 1 | AM29: 1 | AP29: 1 | AS29: 15.44002875 | AW29: 2.204745858 | AX29: =IF(E29="","",IF(F29="R","-",IF(U29="","",IF(AS29=">30","-",IF(AS29="","",IF(E29="","",IF(U29<=5,1,IF(AND(U29>5,U29<35),(0.99+(U29^1.5)/1000),IF(U29>=35,1.2))))))))) -> 1.042383203 | AY29: 18.29917249 | BE29: 0.1952022406 | BJ29: 1.19274888 | BM29: 45.21272444 | BQ29: 0.6934 | BU29: 47.48004495 | BY29: 0.9522468752 | CC29: Sıvılaşma Beklenir | CM29: 1.5 | CQ29: 1.375 | CU29: 0.0477531248 | CY29: 0.09849081991 | DD29: 1.5 | DH29: 1.375 | DL29: 0.5091215686 | DP29: 1.050063235
B30: =IF(E30>0,"13-","") -> 13- | E30: 19.5 | F30: 25 | S30: 19 | T30: 19 | U30: 16 | V30: 379.65 | Z30: 207.975 | AD30: 0.678161746 | AG30: 1 | AJ30: 1 | AM30: 1 | AP30: 1 | AS30: 16.95404365 | AW30: 2.767135031 | AX30: =IF(E30="","",IF(F30="R","-",IF(U30="","",IF(AS30=">30","-",IF(AS30="","",IF(E30="","",IF(U30<=5,1,IF(AND(U30>5,U30<35),(0.99+(U30^1.5)/1000),IF(U30>=35,1.2))))))))) -> 1.054 | AY30: 20.63669704 | BE30: 0.223487544 | BJ30: 1.19274888 | BM30: 55.43875562 | BQ30: 0.65335 | BU30: 48.36864386 | BY30: 1.146171387 | CC30: Sıvılaşma Yok | CM30: - | CQ30: - | CU30: - | CY30: - | DD30: 1.5 | DH30: 0.625 | DL30: 0.3105345987 | DP30: 0.2911261863
B31: =IF(E31>0,"14-","") -> 14- | E31: 21 | F31: 30 | S31: 19 | T31: 19 | U31: 18 | V31: 408.15 | Z31: 221.76 | AD31: 0.6567457157 | AG31: 1 | AJ31: 1 | AM31: 1 | AP31: 1 | AS31: 19.70237147 | AW31: 3.233548842 | AX31: 1.066367532 | AY31: 24.24351809 | BE31: 0.2776827653 | BJ31: 1.19274888 | BM31: 73.44819986 | BQ31: 0.6133 | BU31: 48.81208703 | BY31: 1.504713368 | CC31: Sıvılaşma Yok | CM31: - | CQ31: - | CU31: - | CY31: - | DD31: - | DH31: - | DL31: - | DP31: -
B32: =IF(E32>0,"15-","") ->  | V32: 408.15 | AY32: =IF(E32="","",IF(E32<$AP$8,"-",IF(AS32="-","-",IF(AS32=">30","-",IF(U32<=5,AS32,IF(U32>=35,(5+1.2*AS32),((EXP(1.76-(190/(U32^2))))+((0.99+(U32^1.5)/1000)*AS32)))))))) -> 
B34: Þ | E34: 19.5 | F34: Ü | G34: Sıvılaşmanın Bittiği Zemin Tabakası Başlangıç Derinliği, m [Derinlik değerini SPT-N sonuçlarını kullanarak elle giriniz] | V34: γw = 9.81 kN/m3 | AE34: N1,60 = N CN CR CS CB CE ; N1,60f = α + β·N1,60 | BE34: YASS (Statik) = YASS (Depremli) kabul edilmiştir. | CM34: FL<1.0 | CQ34: LI = | CT34: =SUM(CY18:DC32) -> 41.86828834 | CW34: =IF(CT34=0,"Çok Düşük",IF(CT34<=5,"Düşük",IF(CT34<=15,"Yüksek",IF(CT34>15,"Çok Yüksek")))) -> Çok Yüksek | DD34: FL≤1.41 | DH34: LS = | DK34: =SUM(DP18:DT32) -> 80.74958576 | DN34: =IF(DK34=0,"Sıvılaşma Yok",IF(DK34<15,"Çok Düşük",IF(DK34<35,"Düşük",IF(DK34<65,"Orta",IF(DK34<85,"Yüksek",IF(DK34<100,"Çok Yüksek","-")))))) -> Yüksek
B36: NOT : Hesaplamaların sorumluluğu kullanıcıya ait olup, sıvılaşma analizi hesap cetveline ait telif hakları, 5846 sayılı Fikir ve Sanat Eserleri Kanunu gereğince TMMOB Jeoloji Mühendisleri Odasına ait olup, izin almaksızın içeriğinde herhangi bir değişiklik yapılamaz. Hesap cetveli JMO logolu kullanılmak kaydıyla ücretsiz olarak herkesin kullanımına açıktır. Ancak Oda logosunun hesap cetvelinden çıkarılarak kullanılmasının tespit edilmesi durumunda 5846 sayılı kanun gereğince ilgili kişi hakkında gerekli hukuki yollara başvurulur.

Sheet Oturma-Yanal Yay. ve Muk. Kaybı
X2: SIVILAŞMA SONRASI OTURMA, YANAL YAYILMA VE KAYMA DAYANIMI KAYBI HESAPLARI
X4: PROJE ADI : | AK4: ='Sıvılaşma Potansiyeli Analizi'!S5 -> ANKARA ÇANKAYA İLÇESİ | EP4: Sayfa: | EV4: 2/2
X5: Ada No : | AK5: ='Sıvılaşma Potansiyeli Analizi'!S6 -> 145 | AW5: Koordinatlar: | BJ5: X | BV5: Y | CH5: Kot | CQ5: Datum | DA5: Yerel Zemin Sınıfı | DS5: Mw | ED5: DTS | EP5: SDS
B6: TMMOB JEOLOJİ MÜHENDİSLERİ ODASI | X6: Parsel No : | AK6: ='Sıvılaşma Potansiyeli Analizi'!S7 -> 24 | BJ6: ='Sıvılaşma Potansiyeli Analizi'!AL7 -> 1234567.85 | BV6: ='Sıvılaşma Potansiyeli Analizi'!AU7 -> 12345678.85 | CH6: ='Sıvılaşma Potansiyeli Analizi'!BF7 -> 865.3 | CQ6: ='Sıvılaşma Potansiyeli Analizi'!BN7 -> ITRF-6°
X7: Sondaj Kuyu No : | AK7: ='Sıvılaşma Potansiyeli Analizi'!S8 -> SK-3 | AW7: Yeraltı Suyu Seviyesi : | BN7: ='Sıvılaşma Potansiyeli Analizi'!AP8 -> 2 | BV7: ='Sıvılaşma Potansiyeli Analizi'!AX8 -> SPT Klavuz Tij Boyu (yerden): | CP7: ='Sıvılaşma Potansiyeli Analizi'!BQ8 -> 1 | DA7: ='Sıvılaşma Potansiyeli Analizi'!BX8 -> ZD | DS7: ='Sıvılaşma Potansiyeli Analizi'!CM8 -> 7 | ED7: ='Sıvılaşma Potansiyeli Analizi'!CY8 -> DTS - 2 | EP7: ='Sıvılaşma Potansiyeli Analizi'!DJ8 -> 0.75
X8: SPT Verileri : | AK8: Numune Alıcı Tipi : | AZ8: ='Sıvılaşma Potansiyeli Analizi'!Z9 -> Standart (iç tüpü olan) | BP8: Sondaj Delgi Çapı : | CD8: ='Sıvılaşma Potansiyeli Analizi'!BE9 -> Çap 65mm-115mm arasında | CX8: Tokmak Tipi : | DN8: ='Sıvılaşma Potansiyeli Analizi'!CF9 -> Otomatik darbeli tokmak | ED8: Enerji Oranı (%) : | ER8: ='Sıvılaşma Potansiyeli Analizi'!DK9 -> 60
B10: Sıvılaşma Potansiyeli Analizi Sayfasından Alınan Veriler [Veri girişi yapılamaz] | X10: Sıvılaşma Kaynaklı Düşey ve Yanal Yer Değiştirme Tahmini* | BT10: Sıvılaşma Sonrası Kayma Dayanımı Kaybı* | CX10: Kapak Tabakası Etkisi [Renkli hücrelerde veri girişi ve seçimi yapınız] Bilgi amaçlı verilmiştir. TBDY-2018'de yer almamaktadır.
X11: Ishihara ve Yoshimine [1992] | BF11: Tokimatsu ve Seed [1987] | BT11: Idriss ve Boulanger [2008] | CH11: Kramer ve Wang [2015] | CR11: Weber vd. [2015] | CX11: Ishihara [1985] | DM11: Sönmez vd. [2008] | DS11: Kırmızı dairenin (işaretçi) konumu otomatik olarak belirlenmektedir. Bu dairenin konumuna göre hasar seçimini elle yapınız.
B12: Sıra No | E12: Derinlik (m) | I12: SPT - N | L12: TBDY-2018'e göre Sıvılaşmaya Karşı Güvenlik Koşulu τR /τdeprem ≥ 1.10 | X12: Limit Kesme Birim Deformasyonu, glim | AC12: Parametre Fα | AH12: Maks. Kesme Birim Deformasyonu, gmax | AM12: Sıvılaşan Zemin Tabakası Kalınlığı ΔHi (m) | AR12: Yanal Yer Değiştirme ΔLDli (m) | AW12: Hacimsel Birim Deformasyon Ɛν (%) | BB12: Dinamik Oturma ΔSi (m) | BF12: CSRM,7,5 | BK12: ε (%) | BP12: ΔH (m) | BT12: ΔN1,60 | BW12: f ( °) | BZ12: Durum-1 cu,r / σ'vo | CD12: Durum-2 cu,r / σ'vo | CH12: σ'vo (atm) | CL12: cu,r (kPa) | CR12: cu,r (kPa) | CX12: Sıvılaşmaya Yatkın Kum Zemin Kalınlığı, H2 (m) | DG12: Örtü Zemin Tabakası Kalınlığı, H1 (m) | DM12: Sıvılaşma Şiddeti İndeksi LS
GT13: Sıvılaşmayan zemin
GT14: Sıvılaşabilir zeminler
B15: -1- | E15: -2- | I15: -3- | L15: -4- | X15: -5- | AC15: -6- | AH15: -7- | AM15: -8- | AR15: -9- | AW15: -10- | BB15: -11- | BF15: -12- | BK15: -13- | BP15: -14- | BT15: -15- | BW15: -16- | BZ15: -17- | CD15: -18- | CH15: -19- | CL15: -20- | CR15: -21- | CX15: -22- | DG15: -23- | DM15: -24-
B16: =+IF('Sıvılaşma Potansiyeli Analizi'!B18="","",'Sıvılaşma Potansiyeli Analizi'!B18) -> 1- | E16: =+IF('Sıvılaşma Potansiyeli Analizi'!E18="","",'Sıvılaşma Potansiyeli Analizi'!E18) -> 1.1 | I16: =+IF('Sıvılaşma Potansiyeli Analizi'!F18="","",'Sıvılaşma Potansiyeli Analizi'!F18) -> 8 | L16: =+IF('Sıvılaşma Potansiyeli Analizi'!BY18="","",'Sıvılaşma Potansiyeli Analizi'!BY18) -> - | M16: =+IF('Sıvılaşma Potansiyeli Analizi'!CC18="","",'Sıvılaşma Potansiyeli Analizi'!CC18) -> YAS yok | X16: =IF(E16="","",IF(L16="-","-",IF('Sıvılaşma Potansiyeli Analizi'!AS18>30,0,MAX(0,MIN(0.5,1.859*(1.1-SQRT('Sıvılaşma Potansiyeli Analizi'!AY18/46))^3))))) -> - | AC16: =IF(E16="","", IF(L16="-","-",IF('Sıvılaşma Potansiyeli Analizi'!AY18>30,0,0.032+0.69*SQRT(MAX(7,'Sıvılaşma Potansiyeli Analizi'!AY18))-0.13*MAX(7,'Sıvılaşma Potansiyeli Analizi'!AY18)))) -> - | AH16: =IF(E16="","",IF(L16="-","-",IF(L16>2,0,IF(L16<AC16,X16, MIN(X16,0.035*(1-AC16)*(2-L16)/(L16-AC16)))))) -> - | AM16: =IF('Sıvılaşma Potansiyeli Analizi'!E18="","",IF('Sıvılaşma Potansiyeli Analizi'!BY18="-","-",IF('Sıvılaşma Potansiyeli Analizi'!BY18>1.1,0,IF('Sıvılaşma Potansiyeli Analizi'!$AP$8<'Sıvılaşma Potansiyeli Analizi'!E18,('Sıvılaşma Potansiyeli Analizi'!E18-'Sıvılaşma Potansiyeli Analizi'!$AP$8)+(('Sıvılaşma Potansiyeli Analizi'!E19-'Sıvılaşma Potansiyeli Analizi'!E18)/2),IF('Sıvılaşma Potansiyeli Analizi'!$AP$8>='Sıvılaşma Potansiyeli Analizi'!E19,0,0))))) -> - | AR16: =IF(E16="","",IF(L16="-","-",IF(L16<2,AH16*AM16))) -> - | AW16: =IF(E16="","",IF(L16="-","-",IF(L16>2,0,IF('Sıvılaşma Potansiyeli Analizi'!AY18>30,0,1.5*EXP(-0.369*SQRT('Sıvılaşma Potansiyeli Analizi'!AY18))*MIN(0.08,AH16))))) -> - | BB16: =IF(E16="","",IF(L16="-","-",IF(L16>2,0,PRODUCT(AW16*AM16)))) -> - | BF16: =IF(E16="","",IF(L16="-","-",(0.65*$EP$7*0.4*('Sıvılaşma Potansiyeli Analizi'!V18/'Sıvılaşma Potansiyeli Analizi'!Z18)*'Sıvılaşma Potansiyeli Analizi'!BQ18)/(2.5-0.2*$DS$7))) -> - | BK16: =IF(E16="","",IF(L16="-","-",IF((BF16/'Sıvılaşma Potansiyeli Analizi'!AS18)>0.01,('Sıvılaşma Potansiyeli Analizi'!AS18^(-0.6)*10*0.01),"-"))) -> - | BP16: =IF(E16="","",IF(BK16="-","-",PRODUCT(AM16,BK16))) -> - | BT16: =IF(E16="","",IF(L16="-","-",IF('Sıvılaşma Potansiyeli Analizi'!U18<10,1,IF('Sıvılaşma Potansiyeli Analizi'!U18<25,2,IF('Sıvılaşma Potansiyeli Analizi'!U18<50,4,5))))) -> - | BW16: =IF(E16="","",IF(L16="-","-",DEGREES(ATAN((I16/(12.2+(20.3*'Sıvılaşma Potansiyeli Analizi'!Z18/100)))^0.34)))) -> - | BZ16: =IF(E16="","",IF(L16>=1.1,"-",IF(((EXP(('Sıvılaşma Potansiyeli Analizi'!AS18+BT16)/16+(('Sıvılaşma Potansiyeli Analizi'!AS18+BT16-16)/21.2)^3-3))*(1+EXP(('Sıvılaşma Potansiyeli Analizi'!AS18+BT16)/2.4-6.6)))<=TAN(RADIANS(BW16)),((EXP(('Sıvılaşma Potansiyeli Analizi'!AS18+BT16)/16+(('Sıvılaşma Potansiyeli Analizi'!AS18+BT16-16)/21.2)^3-3))*(1+EXP(('Sıvılaşma Potansiyeli Analizi'!AS18+BT16)/2.4-6.6))),TAN(RADIANS(BW16))))) -> - | CD16: =IF(E16="","",IF(L16>=1.1,"-",IF(((EXP(('Sıvılaşma Potansiyeli Analizi'!AS18+BT16)/16+(('Sıvılaşma Potansiyeli Analizi'!AS18+BT16-16)/21.2)^3-3)))<=TAN(RADIANS(BW16)),((EXP(('Sıvılaşma Potansiyeli Analizi'!AS18+BT16)/16+(('Sıvılaşma Potansiyeli Analizi'!AS18+BT16-16)/21.2)^3-3))),TAN(RADIANS(BW16))))) -> - | CH16: =IF(E16="","",IF(L16="-","-",('Sıvılaşma Potansiyeli Analizi'!Z18*9.87*0.001))) -> - | CL16: =IF(E16="","",IF(L16>=1.1,"-",EXP(-8.444+0.109*'Sıvılaşma Potansiyeli Analizi'!AS18+5.379*(CH16^0.1))*101.33)) -> - | CR16: =IF(E16="","",IF(L16>=1.1,"-",(EXP((0.1292*'Sıvılaşma Potansiyeli Analizi'!AY18)+(4.322*('Sıvılaşma Potansiyeli Analizi'!Z18*0.01)^0.12)))*0.04788)) -> - | CX16: =IF(L16="-","-",IF(L16<=1,AM16,"-")) -> - | DG16: 1 | DM16: =IF('Sıvılaşma Potansiyeli Analizi'!DK34="","",'Sıvılaşma Potansiyeli Analizi'!DK34) -> 80.74958576
B17: =+IF('Sıvılaşma Potansiyeli Analizi'!B19="","",'Sıvılaşma Potansiyeli Analizi'!B19) -> 2- | E17: =+IF('Sıvılaşma Potansiyeli Analizi'!E19="","",'Sıvılaşma Potansiyeli Analizi'!E19) -> 1.8 | I17: =+IF('Sıvılaşma Potansiyeli Analizi'!F19="","",'Sıvılaşma Potansiyeli Analizi'!F19) -> 12 | L17: =+IF('Sıvılaşma Potansiyeli Analizi'!BY19="","",'Sıvılaşma Potansiyeli Analizi'!BY19) -> - | M17: =+IF('Sıvılaşma Potansiyeli Analizi'!CC19="","",'Sıvılaşma Potansiyeli Analizi'!CC19) -> YAS yok | X17: =IF(E17="","",IF(L17="-","-",IF('Sıvılaşma Potansiyeli Analizi'!AS19>30,0,MAX(0,MIN(0.5,1.859*(1.1-SQRT('Sıvılaşma Potansiyeli Analizi'!AY19/46))^3))))) -> - | AC17: =IF(E17="","", IF(L17="-","-",IF('Sıvılaşma Potansiyeli Analizi'!AY19>30,0,0.032+0.69*SQRT(MAX(7,'Sıvılaşma Potansiyeli Analizi'!AY19))-0.13*MAX(7,'Sıvılaşma Potansiyeli Analizi'!AY19)))) -> - | AH17: =IF(E17="","",IF(L17="-","-",IF(L17>2,0,IF(L17<AC17,X17,MIN(X17,0.035*(1-AC17)*(2-L17)/(L17-AC17)))))) -> - | AM17: =IF('Sıvılaşma Potansiyeli Analizi'!E19="","",IF('Sıvılaşma Potansiyeli Analizi'!BY19="-","-",IF('Sıvılaşma Potansiyeli Analizi'!BY19>1.1,0,IF('Sıvılaşma Potansiyeli Analizi'!E20="",('Sıvılaşma Potansiyeli Analizi'!$E$34-'Sıvılaşma Potansiyeli Analizi'!E19)+(('Sıvılaşma Potansiyeli Analizi'!E19-'Sıvılaşma Potansiyeli Analizi'!E18)/2),IF(AND(AM16=0,'Sıvılaşma Potansiyeli Analizi'!$AP$8<'Sıvılaşma Potansiyeli Analizi'!E19,'Sıvılaşma Potansiyeli Analizi'!$AP$8>='Sıvılaşma Potansiyeli Analizi'!E18),(('Sıvılaşma Potansiyeli Analizi'!E20-'Sıvılaşma Potansiyeli Analizi'!E19)/2)+('Sıvılaşma Potansiyeli Analizi'!E19-'Sıvılaşma Potansiyeli Analizi'!$AP$8),(('Sıvılaşma Potansiyeli Analizi'!E20-'Sıvılaşma Potansiyeli Analizi'!E19)/2)+(('Sıvılaşma Potansiyeli Analizi'!E19-'Sıvılaşma Potansiyeli Analizi'!E18)/2)))))) -> - | AR17: =IF(E17="","",IF(L17="-","-",IF(L17<2,PRODUCT(AH17,AM17),0))) -> - | AW17: =IF(E17="","",IF(L17="-","-",IF(L17>2,0,IF('Sıvılaşma Potansiyeli Analizi'!AY19>30,0,1.5*EXP(-0.369*SQRT('Sıvılaşma Potansiyeli Analizi'!AY19))*MIN(0.08,AH17))))) -> - | BB17: =IF(E17="","",IF(L17="-","-",IF(L17>2,0,PRODUCT(AW17,AM17)))) -> - | BF17: =IF(E17="","",IF(L17="-","-",(0.65*$EP$7*0.4*('Sıvılaşma Potansiyeli Analizi'!V19/'Sıvılaşma Potansiyeli Analizi'!Z19)*'Sıvılaşma Potansiyeli Analizi'!BQ19)/(2.5-0.2*$DS$7))) -> - | BK17: =IF(E17="","",IF(L17="-","-",IF((BF17/'Sıvılaşma Potansiyeli Analizi'!AS19)>0.01,('Sıvılaşma Potansiyeli Analizi'!AS19^(-0.6)*10*0.01),"-"))) -> - | BP17: =IF(E17="","",IF(AM17="-","-",PRODUCT(AM17,BK17))) -> - | BT17: =IF(E17="","",IF(L17="-","-",IF('Sıvılaşma Potansiyeli Analizi'!U19<10,1,IF('Sıvılaşma Potansiyeli Analizi'!U19<25,2,IF('Sıvılaşma Potansiyeli Analizi'!U19<50,4,5))))) -> - | BW17: =IF(E17="","",IF(L17="-","-",DEGREES(ATAN((I17/(12.2+(20.3*'Sıvılaşma Potansiyeli Analizi'!Z19/100)))^0.34)))) -> - | BZ17: =IF(E17="","",IF(L17>=1.1,"-",IF(((EXP(('Sıvılaşma Potansiyeli Analizi'!AS19+BT17)/16+(('Sıvılaşma Potansiyeli Analizi'!AS19+BT17-16)/21.2)^3-3))*(1+EXP(('Sıvılaşma Potansiyeli Analizi'!AS19+BT17)/2.4-6.6)))<=TAN(RADIANS(BW17)),((EXP(('Sıvılaşma Potansiyeli Analizi'!AS19+BT17)/16+(('Sıvılaşma Potansiyeli Analizi'!AS19+BT17-16)/21.2)^3-3))*(1+EXP(('Sıvılaşma Potansiyeli Analizi'!AS19+BT17)/2.4-6.6))),TAN(RADIANS(BW17))))) -> - | CD17: =IF(E17="","",IF(L17>=1.1,"-",IF(((EXP(('Sıvılaşma Potansiyeli Analizi'!AS19+BT17)/16+(('Sıvılaşma Potansiyeli Analizi'!AS19+BT17-16)/21.2)^3-3)))<=TAN(RADIANS(BW17)),((EXP(('Sıvılaşma Potansiyeli Analizi'!AS19+BT17)/16+(('Sıvılaşma Potansiyeli Analizi'!AS19+BT17-16)/21.2)^3-3))),TAN(RADIANS(BW17))))) -> - | CH17: =IF(E17="","",IF(L17="-","-",('Sıvılaşma Potansiyeli Analizi'!Z19*9.87*0.001))) -> - | CL17: =IF(E17="","",IF(L17>=1.1,"-",EXP(-8.444+0.109*'Sıvılaşma Potansiyeli Analizi'!AS19+5.379*(CH17^0.1))*101.33)) -> - | CR17: =IF(E17="","",IF(L17>=1.1,"-",(EXP((0.1292*'Sıvılaşma Potansiyeli Analizi'!AY19)+(4.322*('Sıvılaşma Potansiyeli Analizi'!Z19*0.01)^0.12)))*0.04788)) -> - | CX17: =IF(L17="-","-",IF(L17<=1,AM17,"-")) -> -
B18: =+IF('Sıvılaşma Potansiyeli Analizi'!B20="","",'Sıvılaşma Potansiyeli Analizi'!B20) -> 3- | E18: =+IF('Sıvılaşma Potansiyeli Analizi'!E20="","",'Sıvılaşma Potansiyeli Analizi'!E20) -> 2.6 | I18: =+IF('Sıvılaşma Potansiyeli Analizi'!F20="","",'Sıvılaşma Potansiyeli Analizi'!F20) -> 7 | L18: =+IF('Sıvılaşma Potansiyeli Analizi'!BY20="","",'Sıvılaşma Potansiyeli Analizi'!BY20) -> 0.5425265512 | M18: =+IF('Sıvılaşma Potansiyeli Analizi'!CC20="","",'Sıvılaşma Potansiyeli Analizi'!CC20) -> Sıvılaşma Beklenir | X18: =IF(E18="","",IF(L18="-","-",IF('Sıvılaşma Potansiyeli Analizi'!AS20>30,0,MAX(0,MIN(0.5,1.859*(1.1-SQRT('Sıvılaşma Potansiyeli Analizi'!AY20/46))^3))))) -> 0.5 | AC18: =IF(E18="","", IF(L18="-","-",IF('Sıvılaşma Potansiyeli Analizi'!AY20>30,0,0.032+0.69*SQRT(MAX(7,'Sıvılaşma Potansiyeli Analizi'!AY20))-0.13*MAX(7,'Sıvılaşma Potansiyeli Analizi'!AY20)))) -> 0.9396752881 | AH18: =IF(E18="","",IF(L18="-","-",IF(L18>2,0,IF(L18<AC18,X18,MIN(X18,0.035*(1-AC18)*(2-L18)/(L18-AC18)))))) -> 0.5 | AM18: =IF('Sıvılaşma Potansiyeli Analizi'!E20="","",IF('Sıvılaşma Potansiyeli Analizi'!BY20="-","-",IF('Sıvılaşma Potansiyeli Analizi'!BY20>1.1,0,IF('Sıvılaşma Potansiyeli Analizi'!E21="",('Sıvılaşma Potansiyeli Analizi'!$E$34-'Sıvılaşma Potansiyeli Analizi'!E20)+(('Sıvılaşma Potansiyeli Analizi'!E20-'Sıvılaşma Potansiyeli Analizi'!E19)/2),IF(AND(AM17=0,'Sıvılaşma Potansiyeli Analizi'!$AP$8<'Sıvılaşma Potansiyeli Analizi'!E20,'Sıvılaşma Potansiyeli Analizi'!$AP$8>='Sıvılaşma Potansiyeli Analizi'!E19),(('Sıvılaşma Potansiyeli Analizi'!E21-'Sıvılaşma Potansiyeli Analizi'!E20)/2)+('Sıvılaşma Potansiyeli Analizi'!E20-'Sıvılaşma Potansiyeli Analizi'!$AP$8),(('Sıvılaşma Potansiyeli Analizi'!E21-'Sıvılaşma Potansiyeli Analizi'!E20)/2)+(('Sıvılaşma Potansiyeli Analizi'!E20-'Sıvılaşma Potansiyeli Analizi'!E19)/2)))))) -> 0.8 | AR18: =IF(E18="","",IF(L18="-","-",IF(L18<2,PRODUCT(AH18,AM18),0))) -> 0.4 | AW18: =IF(E18="","",IF(L18="-","-",IF(L18>2,0,IF('Sıvılaşma Potansiyeli Analizi'!AY20>30,0,1.5*EXP(-0.369*SQRT('Sıvılaşma Potansiyeli Analizi'!AY20))*MIN(0.08,AH18))))) -> 0.04115104719 | BB18: =IF(E18="","",IF(L18="-","-",IF(L18>2,0,PRODUCT(AW18,AM18)))) -> 0.03292083775 | BF18: =IF(E18="","",IF(L18="-","-",(0.65*$EP$7*0.4*('Sıvılaşma Potansiyeli Analizi'!V20/'Sıvılaşma Potansiyeli Analizi'!Z20)*'Sıvılaşma Potansiyeli Analizi'!BQ20)/(2.5-0.2*$DS$7))) -> 0.1986511538 | BK18: =IF(E18="","",IF(L18="-","-",IF((BF18/'Sıvılaşma Potansiyeli Analizi'!AS20)>0.01,('Sıvılaşma Potansiyeli Analizi'!AS20^(-0.6)*10*0.01),"-"))) -> 0.02869059008 | BP18: 0.02295247206 | BT18: =IF(E18="","",IF(L18="-","-",IF('Sıvılaşma Potansiyeli Analizi'!U20<10,1,IF('Sıvılaşma Potansiyeli Analizi'!U20<25,2,IF('Sıvılaşma Potansiyeli Analizi'!U20<50,4,5))))) -> 1 | BW18: =IF(E18="","",IF(L18="-","-",DEGREES(ATAN((I18/(12.2+(20.3*'Sıvılaşma Potansiyeli Analizi'!Z20/100)))^0.34)))) -> 34.7432564 | BZ18: =IF(E18="","",IF(L18>=1.1,"-",IF(((EXP(('Sıvılaşma Potansiyeli Analizi'!AS20+BT18)/16+(('Sıvılaşma Potansiyeli Analizi'!AS20+BT18-16)/21.2)^3-3))*(1+EXP(('Sıvılaşma Potansiyeli Analizi'!AS20+BT18)/2.4-6.6)))<=TAN(RADIANS(BW18)),((EXP(('Sıvılaşma Potansiyeli Analizi'!AS20+BT18)/16+(('Sıvılaşma Potansiyeli Analizi'!AS20+BT18-16)/21.2)^3-3))*(1+EXP(('Sıvılaşma Potansiyeli Analizi'!AS20+BT18)/2.4-6.6))),TAN(RADIANS(BW18))))) -> 0.08927737431 | CD18: =IF(E18="","",IF(L18>=1.1,"-",IF(((EXP(('Sıvılaşma Potansiyeli Analizi'!AS20+BT18)/16+(('Sıvılaşma Potansiyeli Analizi'!AS20+BT18-16)/21.2)^3-3)))<=TAN(RADIANS(BW18)),((EXP(('Sıvılaşma Potansiyeli Analizi'!AS20+BT18)/16+(('Sıvılaşma Potansiyeli Analizi'!AS20+BT18-16)/21.2)^3-3))),TAN(RADIANS(BW18))))) -> 0.08437149651 | CH18: =IF(E18="","",IF(L18="-","-",('Sıvılaşma Potansiyeli Analizi'!Z20*9.87*0.001))) -> 0.40530168 | CL18: =IF(E18="","",IF(L18>=1.1,"-",EXP(-8.444+0.109*'Sıvılaşma Potansiyeli Analizi'!AS20+5.379*(CH18^0.1))*101.33)) -> 7.115279431 | CR18: =IF(E18="","",IF(L18>=1.1,"-",(EXP((0.1292*'Sıvılaşma Potansiyeli Analizi'!AY20)+(4.322*('Sıvılaşma Potansiyeli Analizi'!Z20*0.01)^0.12)))*0.04788)) -> 6.903238033 | CX18: =IF(L18="-","-",IF(L18<=1,AM18,"-")) -> 0.8 | DG18: amaks = 0.4 x SDS
B19: =+IF('Sıvılaşma Potansiyeli Analizi'!B21="","",'Sıvılaşma Potansiyeli Analizi'!B21) -> 4- | E19: =+IF('Sıvılaşma Potansiyeli Analizi'!E21="","",'Sıvılaşma Potansiyeli Analizi'!E21) -> 3.4 | I19: =+IF('Sıvılaşma Potansiyeli Analizi'!F21="","",'Sıvılaşma Potansiyeli Analizi'!F21) -> 5 | L19: =+IF('Sıvılaşma Potansiyeli Analizi'!BY21="","",'Sıvılaşma Potansiyeli Analizi'!BY21) -> 0.4576672241 | M19: =+IF('Sıvılaşma Potansiyeli Analizi'!CC21="","",'Sıvılaşma Potansiyeli Analizi'!CC21) -> Sıvılaşma Beklenir | X19: =IF(E19="","",IF(L19="-","-",IF('Sıvılaşma Potansiyeli Analizi'!AS21>30,0,MAX(0,MIN(0.5,1.859*(1.1-SQRT('Sıvılaşma Potansiyeli Analizi'!AY21/46))^3))))) -> 0.5 | AC19: =IF(E19="","", IF(L19="-","-",IF('Sıvılaşma Potansiyeli Analizi'!AY21>30,0,0.032+0.69*SQRT(MAX(7,'Sıvılaşma Potansiyeli Analizi'!AY21))-0.13*MAX(7,'Sıvılaşma Potansiyeli Analizi'!AY21)))) -> 0.9455822025 | AH19: 0.5 | AM19: =IF('Sıvılaşma Potansiyeli Analizi'!E21="","",IF('Sıvılaşma Potansiyeli Analizi'!BY21="-","-",IF('Sıvılaşma Potansiyeli Analizi'!BY21>1.1,0,IF('Sıvılaşma Potansiyeli Analizi'!E22="",('Sıvılaşma Potansiyeli Analizi'!$E$34-'Sıvılaşma Potansiyeli Analizi'!E21)+(('Sıvılaşma Potansiyeli Analizi'!E21-'Sıvılaşma Potansiyeli Analizi'!E20)/2),IF(AND(AM18=0,'Sıvılaşma Potansiyeli Analizi'!$AP$8<'Sıvılaşma Potansiyeli Analizi'!E21,'Sıvılaşma Potansiyeli Analizi'!$AP$8>='Sıvılaşma Potansiyeli Analizi'!E20),(('Sıvılaşma Potansiyeli Analizi'!E22-'Sıvılaşma Potansiyeli Analizi'!E21)/2)+('Sıvılaşma Potansiyeli Analizi'!E21-'Sıvılaşma Potansiyeli Analizi'!$AP$8),(('Sıvılaşma Potansiyeli Analizi'!E22-'Sıvılaşma Potansiyeli Analizi'!E21)/2)+(('Sıvılaşma Potansiyeli Analizi'!E21-'Sıvılaşma Potansiyeli Analizi'!E20)/2)))))) -> 2.45 | AR19: =IF(E19="","",IF(L19="-","-",IF(L19<2,PRODUCT(AH19,AM19),0))) -> 1.225 | AW19: =IF(E19="","",IF(L19="-","-",IF(L19>2,0,IF('Sıvılaşma Potansiyeli Analizi'!AY21>30,0,1.5*EXP(-0.369*SQRT('Sıvılaşma Potansiyeli Analizi'!AY21))*MIN(0.08,AH19))))) -> 0.0430565403 | BB19: 0.1054885237 | BF19: =IF(E19="","",IF(L19="-","-",(0.65*$EP$7*0.4*('Sıvılaşma Potansiyeli Analizi'!V21/'Sıvılaşma Potansiyeli Analizi'!Z21)*'Sıvılaşma Potansiyeli Analizi'!BQ21)/(2.5-0.2*$DS$7))) -> 0.2216402599 | BK19: =IF(E19="","",IF(L19="-","-",IF((BF19/'Sıvılaşma Potansiyeli Analizi'!AS21)>0.01,('Sıvılaşma Potansiyeli Analizi'!AS21^(-0.6)*10*0.01),"-"))) -> 0.03421842382 | BP19: 0.08383513835 | BT19: =IF(E19="","",IF(L19="-","-",IF('Sıvılaşma Potansiyeli Analizi'!U21<10,1,IF('Sıvılaşma Potansiyeli Analizi'!U21<25,2,IF('Sıvılaşma Potansiyeli Analizi'!U21<50,4,5))))) -> 2 | BW19: =IF(E19="","",IF(L19="-","-",DEGREES(ATAN((I19/(12.2+(20.3*'Sıvılaşma Potansiyeli Analizi'!Z21/100)))^0.34)))) -> 31.13187908 | BZ19: =IF(E19="","",IF(L19>=1.1,"-",IF(((EXP(('Sıvılaşma Potansiyeli Analizi'!AS21+BT19)/16+(('Sıvılaşma Potansiyeli Analizi'!AS21+BT19-16)/21.2)^3-3))*(1+EXP(('Sıvılaşma Potansiyeli Analizi'!AS21+BT19)/2.4-6.6)))<=TAN(RADIANS(BW19)),((EXP(('Sıvılaşma Potansiyeli Analizi'!AS21+BT19)/16+(('Sıvılaşma Potansiyeli Analizi'!AS21+BT19-16)/21.2)^3-3))*(1+EXP(('Sıvılaşma Potansiyeli Analizi'!AS21+BT19)/2.4-6.6))),TAN(RADIANS(BW19))))) -> 0.08054809192 | CD19: =IF(E19="","",IF(L19>=1.1,"-",IF(((EXP(('Sıvılaşma Potansiyeli Analizi'!AS21+BT19)/16+(('Sıvılaşma Potansiyeli Analizi'!AS21+BT19-16)/21.2)^3-3)))<=TAN(RADIANS(BW19)),((EXP(('Sıvılaşma Potansiyeli Analizi'!AS21+BT19)/16+(('Sıvılaşma Potansiyeli Analizi'!AS21+BT19-16)/21.2)^3-3))),TAN(RADIANS(BW19))))) -> 0.07762058858 | CH19: =IF(E19="","",IF(L19="-","-",('Sıvılaşma Potansiyeli Analizi'!Z21*9.87*0.001))) -> 0.47786592 | CL19: =IF(E19="","",IF(L19>=1.1,"-",EXP(-8.444+0.109*'Sıvılaşma Potansiyeli Analizi'!AS21+5.379*(CH19^0.1))*101.33)) -> 6.1818188 | CR19: =IF(E19="","",IF(L19>=1.1,"-",(EXP((0.1292*'Sıvılaşma Potansiyeli Analizi'!AY21)+(4.322*('Sıvılaşma Potansiyeli Analizi'!Z21*0.01)^0.12)))*0.04788)) -> 6.817749609 | CX19: 2.45 | DG19: =0.4*$EP$7 -> 0.3 | DS19: Abak No:1
B20: =+IF('Sıvılaşma Potansiyeli Analizi'!B22="","",'Sıvılaşma Potansiyeli Analizi'!B22) -> 5- | E20: =+IF('Sıvılaşma Potansiyeli Analizi'!E22="","",'Sıvılaşma Potansiyeli Analizi'!E22) -> 7.5 | I20: =+IF('Sıvılaşma Potansiyeli Analizi'!F22="","",'Sıvılaşma Potansiyeli Analizi'!F22) -> 10 | L20: =+IF('Sıvılaşma Potansiyeli Analizi'!BY22="","",'Sıvılaşma Potansiyeli Analizi'!BY22) -> 0.4905235109 | M20: =+IF('Sıvılaşma Potansiyeli Analizi'!CC22="","",'Sıvılaşma Potansiyeli Analizi'!CC22) -> Sıvılaşma Beklenir | X20: =IF(E20="","",IF(L20="-","-",IF('Sıvılaşma Potansiyeli Analizi'!AS22>30,0,MAX(0,MIN(0.5,1.859*(1.1-SQRT('Sıvılaşma Potansiyeli Analizi'!AY22/46))^3))))) -> 0.4303666994 | AC20: =IF(E20="","", IF(L20="-","-",IF('Sıvılaşma Potansiyeli Analizi'!AY22>30,0,0.032+0.69*SQRT(MAX(7,'Sıvılaşma Potansiyeli Analizi'!AY22))-0.13*MAX(7,'Sıvılaşma Potansiyeli Analizi'!AY22)))) -> 0.8939633631 | AH20: 0.4303666994 | AM20: =IF('Sıvılaşma Potansiyeli Analizi'!E22="","",IF('Sıvılaşma Potansiyeli Analizi'!BY22="-","-",IF('Sıvılaşma Potansiyeli Analizi'!BY22>1.1,0,IF('Sıvılaşma Potansiyeli Analizi'!E23="",('Sıvılaşma Potansiyeli Analizi'!$E$34-'Sıvılaşma Potansiyeli Analizi'!E22)+(('Sıvılaşma Potansiyeli Analizi'!E22-'Sıvılaşma Potansiyeli Analizi'!E21)/2),IF(AND(AM19=0,'Sıvılaşma Potansiyeli Analizi'!$AP$8<'Sıvılaşma Potansiyeli Analizi'!E22,'Sıvılaşma Potansiyeli Analizi'!$AP$8>='Sıvılaşma Potansiyeli Analizi'!E21),(('Sıvılaşma Potansiyeli Analizi'!E23-'Sıvılaşma Potansiyeli Analizi'!E22)/2)+('Sıvılaşma Potansiyeli Analizi'!E22-'Sıvılaşma Potansiyeli Analizi'!$AP$8),(('Sıvılaşma Potansiyeli Analizi'!E23-'Sıvılaşma Potansiyeli Analizi'!E22)/2)+(('Sıvılaşma Potansiyeli Analizi'!E22-'Sıvılaşma Potansiyeli Analizi'!E21)/2)))))) -> 2.8 | AR20: 1.205026758 | AW20: =IF(E20="","",IF(L20="-","-",IF(L20>2,0,IF('Sıvılaşma Potansiyeli Analizi'!AY22>30,0,1.5*EXP(-0.369*SQRT('Sıvılaşma Potansiyeli Analizi'!AY22))*MIN(0.08,AH20))))) -> 0.03556113229 | BB20: 0.09957117041 | BF20: =IF(E20="","",IF(L20="-","-",(0.65*$EP$7*0.4*('Sıvılaşma Potansiyeli Analizi'!V22/'Sıvılaşma Potansiyeli Analizi'!Z22)*'Sıvılaşma Potansiyeli Analizi'!BQ22)/(2.5-0.2*$DS$7))) -> 0.2670625945 | BK20: =IF(E20="","",IF(L20="-","-",IF((BF20/'Sıvılaşma Potansiyeli Analizi'!AS22)>0.01,('Sıvılaşma Potansiyeli Analizi'!AS22^(-0.6)*10*0.01),"-"))) -> 0.02545172738 | BP20: 0.07126483668 | BT20: =IF(E20="","",IF(L20="-","-",IF('Sıvılaşma Potansiyeli Analizi'!U22<10,1,IF('Sıvılaşma Potansiyeli Analizi'!U22<25,2,IF('Sıvılaşma Potansiyeli Analizi'!U22<50,4,5))))) -> 2 | BW20: =IF(E20="","",IF(L20="-","-",DEGREES(ATAN((I20/(12.2+(20.3*'Sıvılaşma Potansiyeli Analizi'!Z22/100)))^0.34)))) -> 34.38661057 | BZ20: =IF(E20="","",IF(L20>=1.1,"-",IF(((EXP(('Sıvılaşma Potansiyeli Analizi'!AS22+BT20)/16+(('Sıvılaşma Potansiyeli Analizi'!AS22+BT20-16)/21.2)^3-3))*(1+EXP(('Sıvılaşma Potansiyeli Analizi'!AS22+BT20)/2.4-6.6)))<=TAN(RADIANS(BW20)),((EXP(('Sıvılaşma Potansiyeli Analizi'!AS22+BT20)/16+(('Sıvılaşma Potansiyeli Analizi'!AS22+BT20-16)/21.2)^3-3))*(1+EXP(('Sıvılaşma Potansiyeli Analizi'!AS22+BT20)/2.4-6.6))),TAN(RADIANS(BW20))))) -> 0.1221918223 | CD20: =IF(E20="","",IF(L20>=1.1,"-",IF(((EXP(('Sıvılaşma Potansiyeli Analizi'!AS22+BT20)/16+(('Sıvılaşma Potansiyeli Analizi'!AS22+BT20-16)/21.2)^3-3)))<=TAN(RADIANS(BW20)),((EXP(('Sıvılaşma Potansiyeli Analizi'!AS22+BT20)/16+(('Sıvılaşma Potansiyeli Analizi'!AS22+BT20-16)/21.2)^3-3))),TAN(RADIANS(BW20))))) -> 0.1031641075 | CH20: =IF(E20="","",IF(L20="-","-",('Sıvılaşma Potansiyeli Analizi'!Z22*9.87*0.001))) -> 0.89022465 | CL20: =IF(E20="","",IF(L20>=1.1,"-",EXP(-8.444+0.109*'Sıvılaşma Potansiyeli Analizi'!AS22+5.379*(CH20^0.1))*101.33)) -> 12.90405962 | CR20: =IF(E20="","",IF(L20>=1.1,"-",(EXP((0.1292*'Sıvılaşma Potansiyeli Analizi'!AY22)+(4.322*('Sıvılaşma Potansiyeli Analizi'!Z22*0.01)^0.12)))*0.04788)) -> 13.92051418 | CX20: 2.8
B21: =+IF('Sıvılaşma Potansiyeli Analizi'!B23="","",'Sıvılaşma Potansiyeli Analizi'!B23) -> 6- | E21: =+IF('Sıvılaşma Potansiyeli Analizi'!E23="","",'Sıvılaşma Potansiyeli Analizi'!E23) -> 9 | I21: =+IF('Sıvılaşma Potansiyeli Analizi'!F23="","",'Sıvılaşma Potansiyeli Analizi'!F23) -> 10 | L21: =+IF('Sıvılaşma Potansiyeli Analizi'!BY23="","",'Sıvılaşma Potansiyeli Analizi'!BY23) -> 0.4334169479 | M21: =+IF('Sıvılaşma Potansiyeli Analizi'!CC23="","",'Sıvılaşma Potansiyeli Analizi'!CC23) -> Sıvılaşma Beklenir | X21: =IF(E21="","",IF(L21="-","-",IF('Sıvılaşma Potansiyeli Analizi'!AS23>30,0,MAX(0,MIN(0.5,1.859*(1.1-SQRT('Sıvılaşma Potansiyeli Analizi'!AY23/46))^3))))) -> 0.4988694665 | AC21: =IF(E21="","", IF(L21="-","-",IF('Sıvılaşma Potansiyeli Analizi'!AY23>30,0,0.032+0.69*SQRT(MAX(7,'Sıvılaşma Potansiyeli Analizi'!AY23))-0.13*MAX(7,'Sıvılaşma Potansiyeli Analizi'!AY23)))) -> 0.9233137066 | AH21: 0.4988694665 | AM21: =IF('Sıvılaşma Potansiyeli Analizi'!E23="","",IF('Sıvılaşma Potansiyeli Analizi'!BY23="-","-",IF('Sıvılaşma Potansiyeli Analizi'!BY23>1.1,0,IF('Sıvılaşma Potansiyeli Analizi'!E24="",('Sıvılaşma Potansiyeli Analizi'!$E$34-'Sıvılaşma Potansiyeli Analizi'!E23)+(('Sıvılaşma Potansiyeli Analizi'!E23-'Sıvılaşma Potansiyeli Analizi'!E22)/2),IF(AND(AM20=0,'Sıvılaşma Potansiyeli Analizi'!$AP$8<'Sıvılaşma Potansiyeli Analizi'!E23,'Sıvılaşma Potansiyeli Analizi'!$AP$8>='Sıvılaşma Potansiyeli Analizi'!E22),(('Sıvılaşma Potansiyeli Analizi'!E24-'Sıvılaşma Potansiyeli Analizi'!E23)/2)+('Sıvılaşma Potansiyeli Analizi'!E23-'Sıvılaşma Potansiyeli Analizi'!$AP$8),(('Sıvılaşma Potansiyeli Analizi'!E24-'Sıvılaşma Potansiyeli Analizi'!E23)/2)+(('Sıvılaşma Potansiyeli Analizi'!E23-'Sıvılaşma Potansiyeli Analizi'!E22)/2)))))) -> 1.5 | AR21: 0.7483041998 | AW21: =IF(E21="","",IF(L21="-","-",IF(L21>2,0,IF('Sıvılaşma Potansiyeli Analizi'!AY23>30,0,1.5*EXP(-0.369*SQRT('Sıvılaşma Potansiyeli Analizi'!AY23))*MIN(0.08,AH21))))) -> 0.03842881715 | BB21: 0.05764322573 | BF21: =IF(E21="","",IF(L21="-","-",(0.65*$EP$7*0.4*('Sıvılaşma Potansiyeli Analizi'!V23/'Sıvılaşma Potansiyeli Analizi'!Z23)*'Sıvılaşma Potansiyeli Analizi'!BQ23)/(2.5-0.2*$DS$7))) -> 0.2725303861 | BK21: =IF(E21="","",IF(L21="-","-",IF((BF21/'Sıvılaşma Potansiyeli Analizi'!AS23)>0.01,('Sıvılaşma Potansiyeli Analizi'!AS23^(-0.6)*10*0.01),"-"))) -> 0.02586709889 | BP21: 0.03880064834 | BT21: =IF(E21="","",IF(L21="-","-",IF('Sıvılaşma Potansiyeli Analizi'!U23<10,1,IF('Sıvılaşma Potansiyeli Analizi'!U23<25,2,IF('Sıvılaşma Potansiyeli Analizi'!U23<50,4,5))))) -> 1 | BW21: =IF(E21="","",IF(L21="-","-",DEGREES(ATAN((I21/(12.2+(20.3*'Sıvılaşma Potansiyeli Analizi'!Z23/100)))^0.34)))) -> 33.5125751 | BZ21: =IF(E21="","",IF(L21>=1.1,"-",IF(((EXP(('Sıvılaşma Potansiyeli Analizi'!AS23+BT21)/16+(('Sıvılaşma Potansiyeli Analizi'!AS23+BT21-16)/21.2)^3-3))*(1+EXP(('Sıvılaşma Potansiyeli Analizi'!AS23+BT21)/2.4-6.6)))<=TAN(RADIANS(BW21)),((EXP(('Sıvılaşma Potansiyeli Analizi'!AS23+BT21)/16+(('Sıvılaşma Potansiyeli Analizi'!AS23+BT21-16)/21.2)^3-3))*(1+EXP(('Sıvılaşma Potansiyeli Analizi'!AS23+BT21)/2.4-6.6))),TAN(RADIANS(BW21))))) -> 0.1047635699 | CD21: =IF(E21="","",IF(L21>=1.1,"-",IF(((EXP(('Sıvılaşma Potansiyeli Analizi'!AS23+BT21)/16+(('Sıvılaşma Potansiyeli Analizi'!AS23+BT21-16)/21.2)^3-3)))<=TAN(RADIANS(BW21)),((EXP(('Sıvılaşma Potansiyeli Analizi'!AS23+BT21)/16+(('Sıvılaşma Potansiyeli Analizi'!AS23+BT21-16)/21.2)^3-3))),TAN(RADIANS(BW21))))) -> 0.09445919415 | CH21: =IF(E21="","",IF(L21="-","-",('Sıvılaşma Potansiyeli Analizi'!Z23*9.87*0.001))) -> 1.0410876 | CL21: =IF(E21="","",IF(L21>=1.1,"-",EXP(-8.444+0.109*'Sıvılaşma Potansiyeli Analizi'!AS23+5.379*(CH21^0.1))*101.33)) -> 13.64051559 | CR21: =IF(E21="","",IF(L21>=1.1,"-",(EXP((0.1292*'Sıvılaşma Potansiyeli Analizi'!AY23)+(4.322*('Sıvılaşma Potansiyeli Analizi'!Z23*0.01)^0.12)))*0.04788)) -> 12.69256498 | CX21: 1.5 | DG21: Sıvılaşma etkisinin yüzeyde görünebilirliği [Abak No:1] | DM21: Yüzeysel Hasar Durumu [Abak No:2] | FV21: Abak-1 için açıklama
B22: =+IF('Sıvılaşma Potansiyeli Analizi'!B24="","",'Sıvılaşma Potansiyeli Analizi'!B24) -> 7- | E22: =+IF('Sıvılaşma Potansiyeli Analizi'!E24="","",'Sıvılaşma Potansiyeli Analizi'!E24) -> 10.5 | I22: =+IF('Sıvılaşma Potansiyeli Analizi'!F24="","",'Sıvılaşma Potansiyeli Analizi'!F24) -> 15 | L22: =+IF('Sıvılaşma Potansiyeli Analizi'!BY24="","",'Sıvılaşma Potansiyeli Analizi'!BY24) -> 0.5825494036 | M22: =+IF('Sıvılaşma Potansiyeli Analizi'!CC24="","",'Sıvılaşma Potansiyeli Analizi'!CC24) -> Sıvılaşma Beklenir | X22: =IF(E22="","",IF(L22="-","-",IF('Sıvılaşma Potansiyeli Analizi'!AS24>30,0,MAX(0,MIN(0.5,1.859*(1.1-SQRT('Sıvılaşma Potansiyeli Analizi'!AY24/46))^3))))) -> 0.3287405704 | AC22: =IF(E22="","", IF(L22="-","-",IF('Sıvılaşma Potansiyeli Analizi'!AY24>30,0,0.032+0.69*SQRT(MAX(7,'Sıvılaşma Potansiyeli Analizi'!AY24))-0.13*MAX(7,'Sıvılaşma Potansiyeli Analizi'!AY24)))) -> 0.8176216994 | AH22: 0.3287405704 | AM22: =IF('Sıvılaşma Potansiyeli Analizi'!E24="","",IF('Sıvılaşma Potansiyeli Analizi'!BY24="-","-",IF('Sıvılaşma Potansiyeli Analizi'!BY24>1.1,0,IF('Sıvılaşma Potansiyeli Analizi'!E25="",('Sıvılaşma Potansiyeli Analizi'!$E$34-'Sıvılaşma Potansiyeli Analizi'!E24)+(('Sıvılaşma Potansiyeli Analizi'!E24-'Sıvılaşma Potansiyeli Analizi'!E23)/2),IF(AND(AM21=0,'Sıvılaşma Potansiyeli Analizi'!$AP$8<'Sıvılaşma Potansiyeli Analizi'!E24,'Sıvılaşma Potansiyeli Analizi'!$AP$8>='Sıvılaşma Potansiyeli Analizi'!E23),(('Sıvılaşma Potansiyeli Analizi'!E25-'Sıvılaşma Potansiyeli Analizi'!E24)/2)+('Sıvılaşma Potansiyeli Analizi'!E24-'Sıvılaşma Potansiyeli Analizi'!$AP$8),(('Sıvılaşma Potansiyeli Analizi'!E25-'Sıvılaşma Potansiyeli Analizi'!E24)/2)+(('Sıvılaşma Potansiyeli Analizi'!E24-'Sıvılaşma Potansiyeli Analizi'!E23)/2)))))) -> 1.5 | AR22: 0.4931108556 | AW22: =IF(E22="","",IF(L22="-","-",IF(L22>2,0,IF('Sıvılaşma Potansiyeli Analizi'!AY24>30,0,1.5*EXP(-0.369*SQRT('Sıvılaşma Potansiyeli Analizi'!AY24))*MIN(0.08,AH22))))) -> 0.03116470067 | BB22: 0.046747051 | BF22: =IF(E22="","",IF(L22="-","-",(0.65*$EP$7*0.4*('Sıvılaşma Potansiyeli Analizi'!V24/'Sıvılaşma Potansiyeli Analizi'!Z24)*'Sıvılaşma Potansiyeli Analizi'!BQ24)/(2.5-0.2*$DS$7))) -> 0.2678043854 | BK22: =IF(E22="","",IF(L22="-","-",IF((BF22/'Sıvılaşma Potansiyeli Analizi'!AS24)>0.01,('Sıvılaşma Potansiyeli Analizi'!AS24^(-0.6)*10*0.01),"-"))) -> 0.02112147568 | BP22: 0.03168221351 | BT22: =IF(E22="","",IF(L22="-","-",IF('Sıvılaşma Potansiyeli Analizi'!U24<10,1,IF('Sıvılaşma Potansiyeli Analizi'!U24<25,2,IF('Sıvılaşma Potansiyeli Analizi'!U24<50,4,5))))) -> 1 | BW22: =IF(E22="","",IF(L22="-","-",DEGREES(ATAN((I22/(12.2+(20.3*'Sıvılaşma Potansiyeli Analizi'!Z24/100)))^0.34)))) -> 36.41261988 | BZ22: =IF(E22="","",IF(L22>=1.1,"-",IF(((EXP(('Sıvılaşma Potansiyeli Analizi'!AS24+BT22)/16+(('Sıvılaşma Potansiyeli Analizi'!AS24+BT22-16)/21.2)^3-3))*(1+EXP(('Sıvılaşma Potansiyeli Analizi'!AS24+BT22)/2.4-6.6)))<=TAN(RADIANS(BW22)),((EXP(('Sıvılaşma Potansiyeli Analizi'!AS24+BT22)/16+(('Sıvılaşma Potansiyeli Analizi'!AS24+BT22-16)/21.2)^3-3))*(1+EXP(('Sıvılaşma Potansiyeli Analizi'!AS24+BT22)/2.4-6.6))),TAN(RADIANS(BW22))))) -> 0.187574252 | CD22: =IF(E22="","",IF(L22>=1.1,"-",IF(((EXP(('Sıvılaşma Potansiyeli Analizi'!AS24+BT22)/16+(('Sıvılaşma Potansiyeli Analizi'!AS24+BT22-16)/21.2)^3-3)))<=TAN(RADIANS(BW22)),((EXP(('Sıvılaşma Potansiyeli Analizi'!AS24+BT22)/16+(('Sıvılaşma Potansiyeli Analizi'!AS24+BT22-16)/21.2)^3-3))),TAN(RADIANS(BW22))))) -> 0.1220116545 | CH22: =IF(E22="","",IF(L22="-","-",('Sıvılaşma Potansiyeli Analizi'!Z24*9.87*0.001))) -> 1.19195055 | CL22: =IF(E22="","",IF(L22>=1.1,"-",EXP(-8.444+0.109*'Sıvılaşma Potansiyeli Analizi'!AS24+5.379*(CH22^0.1))*101.33)) -> 22.28122465 | CR22: =IF(E22="","",IF(L22>=1.1,"-",(EXP((0.1292*'Sıvılaşma Potansiyeli Analizi'!AY24)+(4.322*('Sıvılaşma Potansiyeli Analizi'!Z24*0.01)^0.12)))*0.04788)) -> 22.3460085 | CX22: 1.5
B23: =+IF('Sıvılaşma Potansiyeli Analizi'!B25="","",'Sıvılaşma Potansiyeli Analizi'!B25) -> 8- | E23: =+IF('Sıvılaşma Potansiyeli Analizi'!E25="","",'Sıvılaşma Potansiyeli Analizi'!E25) -> 12 | I23: =+IF('Sıvılaşma Potansiyeli Analizi'!F25="","",'Sıvılaşma Potansiyeli Analizi'!F25) -> 12 | L23: =+IF('Sıvılaşma Potansiyeli Analizi'!BY25="","",'Sıvılaşma Potansiyeli Analizi'!BY25) -> 0.4732425419 | M23: =+IF('Sıvılaşma Potansiyeli Analizi'!CC25="","",'Sıvılaşma Potansiyeli Analizi'!CC25) -> Sıvılaşma Beklenir | X23: =IF(E23="","",IF(L23="-","-",IF('Sıvılaşma Potansiyeli Analizi'!AS25>30,0,MAX(0,MIN(0.5,1.859*(1.1-SQRT('Sıvılaşma Potansiyeli Analizi'!AY25/46))^3))))) -> 0.4699731638 | AC23: =IF(E23="","", IF(L23="-","-",IF('Sıvılaşma Potansiyeli Analizi'!AY25>30,0,0.032+0.69*SQRT(MAX(7,'Sıvılaşma Potansiyeli Analizi'!AY25))-0.13*MAX(7,'Sıvılaşma Potansiyeli Analizi'!AY25)))) -> 0.9126718806 | AH23: 0.4699731638 | AM23: =IF('Sıvılaşma Potansiyeli Analizi'!E25="","",IF('Sıvılaşma Potansiyeli Analizi'!BY25="-","-",IF('Sıvılaşma Potansiyeli Analizi'!BY25>1.1,0,IF('Sıvılaşma Potansiyeli Analizi'!E26="",('Sıvılaşma Potansiyeli Analizi'!$E$34-'Sıvılaşma Potansiyeli Analizi'!E25)+(('Sıvılaşma Potansiyeli Analizi'!E25-'Sıvılaşma Potansiyeli Analizi'!E24)/2),IF(AND(AM22=0,'Sıvılaşma Potansiyeli Analizi'!$AP$8<'Sıvılaşma Potansiyeli Analizi'!E25,'Sıvılaşma Potansiyeli Analizi'!$AP$8>='Sıvılaşma Potansiyeli Analizi'!E24),(('Sıvılaşma Potansiyeli Analizi'!E26-'Sıvılaşma Potansiyeli Analizi'!E25)/2)+('Sıvılaşma Potansiyeli Analizi'!E25-'Sıvılaşma Potansiyeli Analizi'!$AP$8),(('Sıvılaşma Potansiyeli Analizi'!E26-'Sıvılaşma Potansiyeli Analizi'!E25)/2)+(('Sıvılaşma Potansiyeli Analizi'!E25-'Sıvılaşma Potansiyeli Analizi'!E24)/2)))))) -> 1.5 | AR23: 0.7049597458 | AW23: =IF(E23="","",IF(L23="-","-",IF(L23>2,0,IF('Sıvılaşma Potansiyeli Analizi'!AY25>30,0,1.5*EXP(-0.369*SQRT('Sıvılaşma Potansiyeli Analizi'!AY25))*MIN(0.08,AH23))))) -> 0.03722638256 | BB23: 0.05583957384 | BF23: =IF(E23="","",IF(L23="-","-",(0.65*$EP$7*0.4*('Sıvılaşma Potansiyeli Analizi'!V25/'Sıvılaşma Potansiyeli Analizi'!Z25)*'Sıvılaşma Potansiyeli Analizi'!BQ25)/(2.5-0.2*$DS$7))) -> 0.2604305623 | BK23: =IF(E23="","",IF(L23="-","-",IF((BF23/'Sıvılaşma Potansiyeli Analizi'!AS25)>0.01,('Sıvılaşma Potansiyeli Analizi'!AS25^(-0.6)*10*0.01),"-"))) -> 0.02502634939 | BP23: 0.03753952408 | BT23: =IF(E23="","",IF(L23="-","-",IF('Sıvılaşma Potansiyeli Analizi'!U25<10,1,IF('Sıvılaşma Potansiyeli Analizi'!U25<25,2,IF('Sıvılaşma Potansiyeli Analizi'!U25<50,4,5))))) -> 1 | BW23: =IF(E23="","",IF(L23="-","-",DEGREES(ATAN((I23/(12.2+(20.3*'Sıvılaşma Potansiyeli Analizi'!Z25/100)))^0.34)))) -> 33.62831119 | BZ23: =IF(E23="","",IF(L23>=1.1,"-",IF(((EXP(('Sıvılaşma Potansiyeli Analizi'!AS25+BT23)/16+(('Sıvılaşma Potansiyeli Analizi'!AS25+BT23-16)/21.2)^3-3))*(1+EXP(('Sıvılaşma Potansiyeli Analizi'!AS25+BT23)/2.4-6.6)))<=TAN(RADIANS(BW23)),((EXP(('Sıvılaşma Potansiyeli Analizi'!AS25+BT23)/16+(('Sıvılaşma Potansiyeli Analizi'!AS25+BT23-16)/21.2)^3-3))*(1+EXP(('Sıvılaşma Potansiyeli Analizi'!AS25+BT23)/2.4-6.6))),TAN(RADIANS(BW23))))) -> 0.1115508775 | CD23: =IF(E23="","",IF(L23>=1.1,"-",IF(((EXP(('Sıvılaşma Potansiyeli Analizi'!AS25+BT23)/16+(('Sıvılaşma Potansiyeli Analizi'!AS25+BT23-16)/21.2)^3-3)))<=TAN(RADIANS(BW23)),((EXP(('Sıvılaşma Potansiyeli Analizi'!AS25+BT23)/16+(('Sıvılaşma Potansiyeli Analizi'!AS25+BT23-16)/21.2)^3-3))),TAN(RADIANS(BW23))))) -> 0.09814748578 | CH23: =IF(E23="","",IF(L23="-","-",('Sıvılaşma Potansiyeli Analizi'!Z25*9.87*0.001))) -> 1.3428135 | CL23: =IF(E23="","",IF(L23>=1.1,"-",EXP(-8.444+0.109*'Sıvılaşma Potansiyeli Analizi'!AS25+5.379*(CH23^0.1))*101.33)) -> 16.62689602 | CR23: =IF(E23="","",IF(L23>=1.1,"-",(EXP((0.1292*'Sıvılaşma Potansiyeli Analizi'!AY25)+(4.322*('Sıvılaşma Potansiyeli Analizi'!Z25*0.01)^0.12)))*0.04788)) -> 15.57337899 | CX23: 1.5
B24: =+IF('Sıvılaşma Potansiyeli Analizi'!B26="","",'Sıvılaşma Potansiyeli Analizi'!B26) -> 9- | E24: =+IF('Sıvılaşma Potansiyeli Analizi'!E26="","",'Sıvılaşma Potansiyeli Analizi'!E26) -> 13.5 | I24: =+IF('Sıvılaşma Potansiyeli Analizi'!F26="","",'Sıvılaşma Potansiyeli Analizi'!F26) -> 14 | L24: =+IF('Sıvılaşma Potansiyeli Analizi'!BY26="","",'Sıvılaşma Potansiyeli Analizi'!BY26) -> 0.5307494997 | M24: =+IF('Sıvılaşma Potansiyeli Analizi'!CC26="","",'Sıvılaşma Potansiyeli Analizi'!CC26) -> Sıvılaşma Beklenir | X24: =IF(E24="","",IF(L24="-","-",IF('Sıvılaşma Potansiyeli Analizi'!AS26>30,0,MAX(0,MIN(0.5,1.859*(1.1-SQRT('Sıvılaşma Potansiyeli Analizi'!AY26/46))^3))))) -> 0.4180437385 | AC24: =IF(E24="","", IF(L24="-","-",IF('Sıvılaşma Potansiyeli Analizi'!AY26>30,0,0.032+0.69*SQRT(MAX(7,'Sıvılaşma Potansiyeli Analizi'!AY26))-0.13*MAX(7,'Sıvılaşma Potansiyeli Analizi'!AY26)))) -> 0.8870527828 | AH24: 0.4180437385 | AM24: =IF('Sıvılaşma Potansiyeli Analizi'!E26="","",IF('Sıvılaşma Potansiyeli Analizi'!BY26="-","-",IF('Sıvılaşma Potansiyeli Analizi'!BY26>1.1,0,IF('Sıvılaşma Potansiyeli Analizi'!E27="",('Sıvılaşma Potansiyeli Analizi'!$E$34-'Sıvılaşma Potansiyeli Analizi'!E26)+(('Sıvılaşma Potansiyeli Analizi'!E26-'Sıvılaşma Potansiyeli Analizi'!E25)/2),IF(AND(AM23=0,'Sıvılaşma Potansiyeli Analizi'!$AP$8<'Sıvılaşma Potansiyeli Analizi'!E26,'Sıvılaşma Potansiyeli Analizi'!$AP$8>='Sıvılaşma Potansiyeli Analizi'!E25),(('Sıvılaşma Potansiyeli Analizi'!E27-'Sıvılaşma Potansiyeli Analizi'!E26)/2)+('Sıvılaşma Potansiyeli Analizi'!E26-'Sıvılaşma Potansiyeli Analizi'!$AP$8),(('Sıvılaşma Potansiyeli Analizi'!E27-'Sıvılaşma Potansiyeli Analizi'!E26)/2)+(('Sıvılaşma Potansiyeli Analizi'!E26-'Sıvılaşma Potansiyeli Analizi'!E25)/2)))))) -> 1.5 | AR24: 0.6270656077 | AW24: =IF(E24="","",IF(L24="-","-",IF(L24>2,0,IF('Sıvılaşma Potansiyeli Analizi'!AY26>30,0,1.5*EXP(-0.369*SQRT('Sıvılaşma Potansiyeli Analizi'!AY26))*MIN(0.08,AH24))))) -> 0.03503837193 | BB24: 0.05255755789 | BF24: =IF(E24="","",IF(L24="-","-",(0.65*$EP$7*0.4*('Sıvılaşma Potansiyeli Analizi'!V26/'Sıvılaşma Potansiyeli Analizi'!Z26)*'Sıvılaşma Potansiyeli Analizi'!BQ26)/(2.5-0.2*$DS$7))) -> 0.2517314107 | BK24: =IF(E24="","",IF(L24="-","-",IF((BF24/'Sıvılaşma Potansiyeli Analizi'!AS26)>0.01,('Sıvılaşma Potansiyeli Analizi'!AS26^(-0.6)*10*0.01),"-"))) -> 0.02355600729 | BP24: 0.03533401093 | BT24: =IF(E24="","",IF(L24="-","-",IF('Sıvılaşma Potansiyeli Analizi'!U26<10,1,IF('Sıvılaşma Potansiyeli Analizi'!U26<25,2,IF('Sıvılaşma Potansiyeli Analizi'!U26<50,4,5))))) -> 1 | BW24: =IF(E24="","",IF(L24="-","-",DEGREES(ATAN((I24/(12.2+(20.3*'Sıvılaşma Potansiyeli Analizi'!Z26/100)))^0.34)))) -> 34.34260473 | BZ24: =IF(E24="","",IF(L24>=1.1,"-",IF(((EXP(('Sıvılaşma Potansiyeli Analizi'!AS26+BT24)/16+(('Sıvılaşma Potansiyeli Analizi'!AS26+BT24-16)/21.2)^3-3))*(1+EXP(('Sıvılaşma Potansiyeli Analizi'!AS26+BT24)/2.4-6.6)))<=TAN(RADIANS(BW24)),((EXP(('Sıvılaşma Potansiyeli Analizi'!AS26+BT24)/16+(('Sıvılaşma Potansiyeli Analizi'!AS26+BT24-16)/21.2)^3-3))*(1+EXP(('Sıvılaşma Potansiyeli Analizi'!AS26+BT24)/2.4-6.6))),TAN(RADIANS(BW24))))) -> 0.1281256914 | CD24: =IF(E24="","",IF(L24>=1.1,"-",IF(((EXP(('Sıvılaşma Potansiyeli Analizi'!AS26+BT24)/16+(('Sıvılaşma Potansiyeli Analizi'!AS26+BT24-16)/21.2)^3-3)))<=TAN(RADIANS(BW24)),((EXP(('Sıvılaşma Potansiyeli Analizi'!AS26+BT24)/16+(('Sıvılaşma Potansiyeli Analizi'!AS26+BT24-16)/21.2)^3-3))),TAN(RADIANS(BW24))))) -> 0.1056150289 | CH24: =IF(E24="","",IF(L24="-","-",('Sıvılaşma Potansiyeli Analizi'!Z26*9.87*0.001))) -> 1.49367645 | CL24: =IF(E24="","",IF(L24>=1.1,"-",EXP(-8.444+0.109*'Sıvılaşma Potansiyeli Analizi'!AS26+5.379*(CH24^0.1))*101.33)) -> 19.82163258 | CR24: =IF(E24="","",IF(L24>=1.1,"-",(EXP((0.1292*'Sıvılaşma Potansiyeli Analizi'!AY26)+(4.322*('Sıvılaşma Potansiyeli Analizi'!Z26*0.01)^0.12)))*0.04788)) -> 18.9397493 | CX24: 1.5
B25: =+IF('Sıvılaşma Potansiyeli Analizi'!B27="","",'Sıvılaşma Potansiyeli Analizi'!B27) -> 10- | E25: =+IF('Sıvılaşma Potansiyeli Analizi'!E27="","",'Sıvılaşma Potansiyeli Analizi'!E27) -> 15 | I25: =+IF('Sıvılaşma Potansiyeli Analizi'!F27="","",'Sıvılaşma Potansiyeli Analizi'!F27) -> 16 | L25: =+IF('Sıvılaşma Potansiyeli Analizi'!BY27="","",'Sıvılaşma Potansiyeli Analizi'!BY27) -> 0.5926848898 | M25: =+IF('Sıvılaşma Potansiyeli Analizi'!CC27="","",'Sıvılaşma Potansiyeli Analizi'!CC27) -> Sıvılaşma Beklenir | X25: =IF(E25="","",IF(L25="-","-",IF('Sıvılaşma Potansiyeli Analizi'!AS27>30,0,MAX(0,MIN(0.5,1.859*(1.1-SQRT('Sıvılaşma Potansiyeli Analizi'!AY27/46))^3))))) -> 0.37532119 | AC25: =IF(E25="","", IF(L25="-","-",IF('Sıvılaşma Potansiyeli Analizi'!AY27>30,0,0.032+0.69*SQRT(MAX(7,'Sıvılaşma Potansiyeli Analizi'!AY27))-0.13*MAX(7,'Sıvılaşma Potansiyeli Analizi'!AY27)))) -> 0.8584716123 | AH25: 0.37532119 | AM25: =IF('Sıvılaşma Potansiyeli Analizi'!E27="","",IF('Sıvılaşma Potansiyeli Analizi'!BY27="-","-",IF('Sıvılaşma Potansiyeli Analizi'!BY27>1.1,0,IF('Sıvılaşma Potansiyeli Analizi'!E28="",('Sıvılaşma Potansiyeli Analizi'!$E$34-'Sıvılaşma Potansiyeli Analizi'!E27)+(('Sıvılaşma Potansiyeli Analizi'!E27-'Sıvılaşma Potansiyeli Analizi'!E26)/2),IF(AND(AM24=0,'Sıvılaşma Potansiyeli Analizi'!$AP$8<'Sıvılaşma Potansiyeli Analizi'!E27,'Sıvılaşma Potansiyeli Analizi'!$AP$8>='Sıvılaşma Potansiyeli Analizi'!E26),(('Sıvılaşma Potansiyeli Analizi'!E28-'Sıvılaşma Potansiyeli Analizi'!E27)/2)+('Sıvılaşma Potansiyeli Analizi'!E27-'Sıvılaşma Potansiyeli Analizi'!$AP$8),(('Sıvılaşma Potansiyeli Analizi'!E28-'Sıvılaşma Potansiyeli Analizi'!E27)/2)+(('Sıvılaşma Potansiyeli Analizi'!E27-'Sıvılaşma Potansiyeli Analizi'!E26)/2)))))) -> 1.5 | AR25: 0.5629817849 | AW25: =IF(E25="","",IF(L25="-","-",IF(L25>2,0,IF('Sıvılaşma Potansiyeli Analizi'!AY27>30,0,1.5*EXP(-0.369*SQRT('Sıvılaşma Potansiyeli Analizi'!AY27))*MIN(0.08,AH25))))) -> 0.03320584249 | BB25: 0.04980876374 | BF25: =IF(E25="","",IF(L25="-","-",(0.65*$EP$7*0.4*('Sıvılaşma Potansiyeli Analizi'!V27/'Sıvılaşma Potansiyeli Analizi'!Z27)*'Sıvılaşma Potansiyeli Analizi'!BQ27)/(2.5-0.2*$DS$7))) -> 0.2420716703 | BK25: =IF(E25="","",IF(L25="-","-",IF((BF25/'Sıvılaşma Potansiyeli Analizi'!AS27)>0.01,('Sıvılaşma Potansiyeli Analizi'!AS27^(-0.6)*10*0.01),"-"))) -> 0.02237911132 | BP25: 0.03356866698 | BT25: =IF(E25="","",IF(L25="-","-",IF('Sıvılaşma Potansiyeli Analizi'!U27<10,1,IF('Sıvılaşma Potansiyeli Analizi'!U27<25,2,IF('Sıvılaşma Potansiyeli Analizi'!U27<50,4,5))))) -> 1 | BW25: =IF(E25="","",IF(L25="-","-",DEGREES(ATAN((I25/(12.2+(20.3*'Sıvılaşma Potansiyeli Analizi'!Z27/100)))^0.34)))) -> 34.92316117 | BZ25: =IF(E25="","",IF(L25>=1.1,"-",IF(((EXP(('Sıvılaşma Potansiyeli Analizi'!AS27+BT25)/16+(('Sıvılaşma Potansiyeli Analizi'!AS27+BT25-16)/21.2)^3-3))*(1+EXP(('Sıvılaşma Potansiyeli Analizi'!AS27+BT25)/2.4-6.6)))<=TAN(RADIANS(BW25)),((EXP(('Sıvılaşma Potansiyeli Analizi'!AS27+BT25)/16+(('Sıvılaşma Potansiyeli Analizi'!AS27+BT25-16)/21.2)^3-3))*(1+EXP(('Sıvılaşma Potansiyeli Analizi'!AS27+BT25)/2.4-6.6))),TAN(RADIANS(BW25))))) -> 0.1491262496 | CD25: =IF(E25="","",IF(L25>=1.1,"-",IF(((EXP(('Sıvılaşma Potansiyeli Analizi'!AS27+BT25)/16+(('Sıvılaşma Potansiyeli Analizi'!AS27+BT25-16)/21.2)^3-3)))<=TAN(RADIANS(BW25)),((EXP(('Sıvılaşma Potansiyeli Analizi'!AS27+BT25)/16+(('Sıvılaşma Potansiyeli Analizi'!AS27+BT25-16)/21.2)^3-3))),TAN(RADIANS(BW25))))) -> 0.1127774671 | CH25: =IF(E25="","",IF(L25="-","-",('Sıvılaşma Potansiyeli Analizi'!Z27*9.87*0.001))) -> 1.6445394 | CL25: =IF(E25="","",IF(L25>=1.1,"-",EXP(-8.444+0.109*'Sıvılaşma Potansiyeli Analizi'!AS27+5.379*(CH25^0.1))*101.33)) -> 23.31497076 | CR25: =IF(E25="","",IF(L25>=1.1,"-",(EXP((0.1292*'Sıvılaşma Potansiyeli Analizi'!AY27)+(4.322*('Sıvılaşma Potansiyeli Analizi'!Z27*0.01)^0.12)))*0.04788)) -> 22.69738017 | CX25: 1.5
B26: =+IF('Sıvılaşma Potansiyeli Analizi'!B28="","",'Sıvılaşma Potansiyeli Analizi'!B28) -> 11- | E26: =+IF('Sıvılaşma Potansiyeli Analizi'!E28="","",'Sıvılaşma Potansiyeli Analizi'!E28) -> 16.5 | I26: =+IF('Sıvılaşma Potansiyeli Analizi'!F28="","",'Sıvılaşma Potansiyeli Analizi'!F28) -> 20 | L26: =+IF('Sıvılaşma Potansiyeli Analizi'!BY28="","",'Sıvılaşma Potansiyeli Analizi'!BY28) -> 0.7260034526 | M26: =+IF('Sıvılaşma Potansiyeli Analizi'!CC28="","",'Sıvılaşma Potansiyeli Analizi'!CC28) -> Sıvılaşma Beklenir | X26: =IF(E26="","",IF(L26="-","-",IF('Sıvılaşma Potansiyeli Analizi'!AS28>30,0,MAX(0,MIN(0.5,1.859*(1.1-SQRT('Sıvılaşma Potansiyeli Analizi'!AY28/46))^3))))) -> 0.2884265969 | AC26: =IF(E26="","", IF(L26="-","-",IF('Sıvılaşma Potansiyeli Analizi'!AY28>30,0,0.032+0.69*SQRT(MAX(7,'Sıvılaşma Potansiyeli Analizi'!AY28))-0.13*MAX(7,'Sıvılaşma Potansiyeli Analizi'!AY28)))) -> 0.771961769 | AH26: 0.2884265969 | AM26: =IF('Sıvılaşma Potansiyeli Analizi'!E28="","",IF('Sıvılaşma Potansiyeli Analizi'!BY28="-","-",IF('Sıvılaşma Potansiyeli Analizi'!BY28>1.1,0,IF('Sıvılaşma Potansiyeli Analizi'!E29="",('Sıvılaşma Potansiyeli Analizi'!$E$34-'Sıvılaşma Potansiyeli Analizi'!E28)+(('Sıvılaşma Potansiyeli Analizi'!E28-'Sıvılaşma Potansiyeli Analizi'!E27)/2),IF(AND(AM25=0,'Sıvılaşma Potansiyeli Analizi'!$AP$8<'Sıvılaşma Potansiyeli Analizi'!E28,'Sıvılaşma Potansiyeli Analizi'!$AP$8>='Sıvılaşma Potansiyeli Analizi'!E27),(('Sıvılaşma Potansiyeli Analizi'!E29-'Sıvılaşma Potansiyeli Analizi'!E28)/2)+('Sıvılaşma Potansiyeli Analizi'!E28-'Sıvılaşma Potansiyeli Analizi'!$AP$8),(('Sıvılaşma Potansiyeli Analizi'!E29-'Sıvılaşma Potansiyeli Analizi'!E28)/2)+(('Sıvılaşma Potansiyeli Analizi'!E28-'Sıvılaşma Potansiyeli Analizi'!E27)/2)))))) -> 1.5 | AR26: 0.4326398953 | AW26: =IF(E26="","",IF(L26="-","-",IF(L26>2,0,IF('Sıvılaşma Potansiyeli Analizi'!AY28>30,0,1.5*EXP(-0.369*SQRT('Sıvılaşma Potansiyeli Analizi'!AY28))*MIN(0.08,AH26))))) -> 0.02935146971 | BB26: 0.04402720456 | BF26: =IF(E26="","",IF(L26="-","-",(0.65*$EP$7*0.4*('Sıvılaşma Potansiyeli Analizi'!V28/'Sıvılaşma Potansiyeli Analizi'!Z28)*'Sıvılaşma Potansiyeli Analizi'!BQ28)/(2.5-0.2*$DS$7))) -> 0.2325388597 | BK26: =IF(E26="","",IF(L26="-","-",IF((BF26/'Sıvılaşma Potansiyeli Analizi'!AS28)>0.01,('Sıvılaşma Potansiyeli Analizi'!AS28^(-0.6)*10*0.01),"-"))) -> 0.02004717866 | BP26: 0.03007076798 | BT26: =IF(E26="","",IF(L26="-","-",IF('Sıvılaşma Potansiyeli Analizi'!U28<10,1,IF('Sıvılaşma Potansiyeli Analizi'!U28<25,2,IF('Sıvılaşma Potansiyeli Analizi'!U28<50,4,5))))) -> 1 | BW26: =IF(E26="","",IF(L26="-","-",DEGREES(ATAN((I26/(12.2+(20.3*'Sıvılaşma Potansiyeli Analizi'!Z28/100)))^0.34)))) -> 36.43765685 | BZ26: =IF(E26="","",IF(L26>=1.1,"-",IF(((EXP(('Sıvılaşma Potansiyeli Analizi'!AS28+BT26)/16+(('Sıvılaşma Potansiyeli Analizi'!AS28+BT26-16)/21.2)^3-3))*(1+EXP(('Sıvılaşma Potansiyeli Analizi'!AS28+BT26)/2.4-6.6)))<=TAN(RADIANS(BW26)),((EXP(('Sıvılaşma Potansiyeli Analizi'!AS28+BT26)/16+(('Sıvılaşma Potansiyeli Analizi'!AS28+BT26-16)/21.2)^3-3))*(1+EXP(('Sıvılaşma Potansiyeli Analizi'!AS28+BT26)/2.4-6.6))),TAN(RADIANS(BW26))))) -> 0.2490073761 | CD26: =IF(E26="","",IF(L26>=1.1,"-",IF(((EXP(('Sıvılaşma Potansiyeli Analizi'!AS28+BT26)/16+(('Sıvılaşma Potansiyeli Analizi'!AS28+BT26-16)/21.2)^3-3)))<=TAN(RADIANS(BW26)),((EXP(('Sıvılaşma Potansiyeli Analizi'!AS28+BT26)/16+(('Sıvılaşma Potansiyeli Analizi'!AS28+BT26-16)/21.2)^3-3))),TAN(RADIANS(BW26))))) -> 0.1316860707 | CH26: =IF(E26="","",IF(L26="-","-",('Sıvılaşma Potansiyeli Analizi'!Z28*9.87*0.001))) -> 1.78059735 | CL26: =IF(E26="","",IF(L26>=1.1,"-",EXP(-8.444+0.109*'Sıvılaşma Potansiyeli Analizi'!AS28+5.379*(CH26^0.1))*101.33)) -> 31.82316822 | CR26: =IF(E26="","",IF(L26>=1.1,"-",(EXP((0.1292*'Sıvılaşma Potansiyeli Analizi'!AY28)+(4.322*('Sıvılaşma Potansiyeli Analizi'!Z28*0.01)^0.12)))*0.04788)) -> 32.51053297 | CX26: 1.5
B27: =+IF('Sıvılaşma Potansiyeli Analizi'!B29="","",'Sıvılaşma Potansiyeli Analizi'!B29) -> 12- | E27: =+IF('Sıvılaşma Potansiyeli Analizi'!E29="","",'Sıvılaşma Potansiyeli Analizi'!E29) -> 18 | I27: =+IF('Sıvılaşma Potansiyeli Analizi'!F29="","",'Sıvılaşma Potansiyeli Analizi'!F29) -> 22 | L27: =+IF('Sıvılaşma Potansiyeli Analizi'!BY29="","",'Sıvılaşma Potansiyeli Analizi'!BY29) -> 0.9522468752 | M27: =+IF('Sıvılaşma Potansiyeli Analizi'!CC29="","",'Sıvılaşma Potansiyeli Analizi'!CC29) -> Sıvılaşma Beklenir | X27: =IF(E27="","",IF(L27="-","-",IF('Sıvılaşma Potansiyeli Analizi'!AS29>30,0,MAX(0,MIN(0.5,1.859*(1.1-SQRT('Sıvılaşma Potansiyeli Analizi'!AY29/46))^3))))) -> 0.1921209352 | AC27: =IF(E27="","", IF(L27="-","-",IF('Sıvılaşma Potansiyeli Analizi'!AY29>30,0,0.032+0.69*SQRT(MAX(7,'Sıvılaşma Potansiyeli Analizi'!AY29))-0.13*MAX(7,'Sıvılaşma Potansiyeli Analizi'!AY29)))) -> 0.6047572884 | AH27: 0.04171085427 | AM27: =IF('Sıvılaşma Potansiyeli Analizi'!E29="","",IF('Sıvılaşma Potansiyeli Analizi'!BY29="-","-",IF('Sıvılaşma Potansiyeli Analizi'!BY29>1.1,0,IF('Sıvılaşma Potansiyeli Analizi'!E30="",('Sıvılaşma Potansiyeli Analizi'!$E$34-'Sıvılaşma Potansiyeli Analizi'!E29)+(('Sıvılaşma Potansiyeli Analizi'!E29-'Sıvılaşma Potansiyeli Analizi'!E28)/2),IF(AND(AM26=0,'Sıvılaşma Potansiyeli Analizi'!$AP$8<'Sıvılaşma Potansiyeli Analizi'!E29,'Sıvılaşma Potansiyeli Analizi'!$AP$8>='Sıvılaşma Potansiyeli Analizi'!E28),(('Sıvılaşma Potansiyeli Analizi'!E30-'Sıvılaşma Potansiyeli Analizi'!E29)/2)+('Sıvılaşma Potansiyeli Analizi'!E29-'Sıvılaşma Potansiyeli Analizi'!$AP$8),(('Sıvılaşma Potansiyeli Analizi'!E30-'Sıvılaşma Potansiyeli Analizi'!E29)/2)+(('Sıvılaşma Potansiyeli Analizi'!E29-'Sıvılaşma Potansiyeli Analizi'!E28)/2)))))) -> 1.5 | AR27: 0.0625662814 | AW27: =IF(E27="","",IF(L27="-","-",IF(L27>2,0,IF('Sıvılaşma Potansiyeli Analizi'!AY29>30,0,1.5*EXP(-0.369*SQRT('Sıvılaşma Potansiyeli Analizi'!AY29))*MIN(0.08,AH27))))) -> 0.01290655813 | BB27: 0.01935983719 | BF27: =IF(E27="","",IF(L27="-","-",(0.65*$EP$7*0.4*('Sıvılaşma Potansiyeli Analizi'!V29/'Sıvılaşma Potansiyeli Analizi'!Z29)*'Sıvılaşma Potansiyeli Analizi'!BQ29)/(2.5-0.2*$DS$7))) -> 0.2222754891 | BK27: =IF(E27="","",IF(L27="-","-",IF((BF27/'Sıvılaşma Potansiyeli Analizi'!AS29)>0.01,('Sıvılaşma Potansiyeli Analizi'!AS29^(-0.6)*10*0.01),"-"))) -> 0.0193558005 | BP27: 0.02903370075 | BT27: =IF(E27="","",IF(L27="-","-",IF('Sıvılaşma Potansiyeli Analizi'!U29<10,1,IF('Sıvılaşma Potansiyeli Analizi'!U29<25,2,IF('Sıvılaşma Potansiyeli Analizi'!U29<50,4,5))))) -> 2 | BW27: =IF(E27="","",IF(L27="-","-",DEGREES(ATAN((I27/(12.2+(20.3*'Sıvılaşma Potansiyeli Analizi'!Z29/100)))^0.34)))) -> 36.80676318 | BZ27: =IF(E27="","",IF(L27>=1.1,"-",IF(((EXP(('Sıvılaşma Potansiyeli Analizi'!AS29+BT27)/16+(('Sıvılaşma Potansiyeli Analizi'!AS29+BT27-16)/21.2)^3-3))*(1+EXP(('Sıvılaşma Potansiyeli Analizi'!AS29+BT27)/2.4-6.6)))<=TAN(RADIANS(BW27)),((EXP(('Sıvılaşma Potansiyeli Analizi'!AS29+BT27)/16+(('Sıvılaşma Potansiyeli Analizi'!AS29+BT27-16)/21.2)^3-3))*(1+EXP(('Sıvılaşma Potansiyeli Analizi'!AS29+BT27)/2.4-6.6))),TAN(RADIANS(BW27))))) -> 0.4366426607 | CD27: =IF(E27="","",IF(L27>=1.1,"-",IF(((EXP(('Sıvılaşma Potansiyeli Analizi'!AS29+BT27)/16+(('Sıvılaşma Potansiyeli Analizi'!AS29+BT27-16)/21.2)^3-3)))<=TAN(RADIANS(BW27)),((EXP(('Sıvılaşma Potansiyeli Analizi'!AS29+BT27)/16+(('Sıvılaşma Potansiyeli Analizi'!AS29+BT27-16)/21.2)^3-3))),TAN(RADIANS(BW27))))) -> 0.1481270692 | CH27: =IF(E27="","",IF(L27="-","-",('Sıvılaşma Potansiyeli Analizi'!Z29*9.87*0.001))) -> 1.9166553 | CL27: =IF(E27="","",IF(L27>=1.1,"-",EXP(-8.444+0.109*'Sıvılaşma Potansiyeli Analizi'!AS29+5.379*(CH27^0.1))*101.33)) -> 36.52247873 | CR27: =IF(E27="","",IF(L27>=1.1,"-",(EXP((0.1292*'Sıvılaşma Potansiyeli Analizi'!AY29)+(4.322*('Sıvılaşma Potansiyeli Analizi'!Z29*0.01)^0.12)))*0.04788)) -> 54.89802132 | CX27: 1.5 | DG27: Görülür | DM27: Sıvılaşma hasarı var
B28: =+IF('Sıvılaşma Potansiyeli Analizi'!B30="","",'Sıvılaşma Potansiyeli Analizi'!B30) -> 13- | E28: =+IF('Sıvılaşma Potansiyeli Analizi'!E30="","",'Sıvılaşma Potansiyeli Analizi'!E30) -> 19.5 | I28: =+IF('Sıvılaşma Potansiyeli Analizi'!F30="","",'Sıvılaşma Potansiyeli Analizi'!F30) -> 25 | L28: =+IF('Sıvılaşma Potansiyeli Analizi'!BY30="","",'Sıvılaşma Potansiyeli Analizi'!BY30) -> 1.146171387 | M28: =+IF('Sıvılaşma Potansiyeli Analizi'!CC30="","",'Sıvılaşma Potansiyeli Analizi'!CC30) -> Sıvılaşma Yok | X28: =IF(E28="","",IF(L28="-","-",IF('Sıvılaşma Potansiyeli Analizi'!AS30>30,0,MAX(0,MIN(0.5,1.859*(1.1-SQRT('Sıvılaşma Potansiyeli Analizi'!AY30/46))^3))))) -> 0.1480161579 | AC28: =IF(E28="","", IF(L28="-","-",IF('Sıvılaşma Potansiyeli Analizi'!AY30>30,0,0.032+0.69*SQRT(MAX(7,'Sıvılaşma Potansiyeli Analizi'!AY30))-0.13*MAX(7,'Sıvılaşma Potansiyeli Analizi'!AY30)))) -> 0.4837359586 | AH28: 0.02328987054 | AM28: =IF('Sıvılaşma Potansiyeli Analizi'!E30="","",IF('Sıvılaşma Potansiyeli Analizi'!BY30="-","-",IF('Sıvılaşma Potansiyeli Analizi'!BY30>1.1,0,IF('Sıvılaşma Potansiyeli Analizi'!E31="",('Sıvılaşma Potansiyeli Analizi'!$E$34-'Sıvılaşma Potansiyeli Analizi'!E30)+(('Sıvılaşma Potansiyeli Analizi'!E30-'Sıvılaşma Potansiyeli Analizi'!E29)/2),IF(AND(AM27=0,'Sıvılaşma Potansiyeli Analizi'!$AP$8<'Sıvılaşma Potansiyeli Analizi'!E30,'Sıvılaşma Potansiyeli Analizi'!$AP$8>='Sıvılaşma Potansiyeli Analizi'!E29),(('Sıvılaşma Potansiyeli Analizi'!E31-'Sıvılaşma Potansiyeli Analizi'!E30)/2)+('Sıvılaşma Potansiyeli Analizi'!E30-'Sıvılaşma Potansiyeli Analizi'!$AP$8),(('Sıvılaşma Potansiyeli Analizi'!E31-'Sıvılaşma Potansiyeli Analizi'!E30)/2)+(('Sıvılaşma Potansiyeli Analizi'!E30-'Sıvılaşma Potansiyeli Analizi'!E29)/2)))))) -> 0 | AR28: 0 | AW28: =IF(E28="","",IF(L28="-","-",IF(L28>2,0,IF('Sıvılaşma Potansiyeli Analizi'!AY30>30,0,1.5*EXP(-0.369*SQRT('Sıvılaşma Potansiyeli Analizi'!AY30))*MIN(0.08,AH28))))) -> 0.006535207058 | BB28: 0 | BF28: =IF(E28="","",IF(L28="-","-",(0.65*$EP$7*0.4*('Sıvılaşma Potansiyeli Analizi'!V30/'Sıvılaşma Potansiyeli Analizi'!Z30)*'Sıvılaşma Potansiyeli Analizi'!BQ30)/(2.5-0.2*$DS$7))) -> 0.2114268274 | BK28: =IF(E28="","",IF(L28="-","-",IF((BF28/'Sıvılaşma Potansiyeli Analizi'!AS30)>0.01,('Sıvılaşma Potansiyeli Analizi'!AS30^(-0.6)*10*0.01),"-"))) -> 0.01829936509 | BP28: 0 | BT28: =IF(E28="","",IF(L28="-","-",IF('Sıvılaşma Potansiyeli Analizi'!U30<10,1,IF('Sıvılaşma Potansiyeli Analizi'!U30<25,2,IF('Sıvılaşma Potansiyeli Analizi'!U30<50,4,5))))) -> 2 | BW28: =IF(E28="","",IF(L28="-","-",DEGREES(ATAN((I28/(12.2+(20.3*'Sıvılaşma Potansiyeli Analizi'!Z30/100)))^0.34)))) -> 37.51045919 | BZ28: =IF(E28="","",IF(L28>=1.1,"-",IF(((EXP(('Sıvılaşma Potansiyeli Analizi'!AS30+BT28)/16+(('Sıvılaşma Potansiyeli Analizi'!AS30+BT28-16)/21.2)^3-3))*(1+EXP(('Sıvılaşma Potansiyeli Analizi'!AS30+BT28)/2.4-6.6)))<=TAN(RADIANS(BW28)),((EXP(('Sıvılaşma Potansiyeli Analizi'!AS30+BT28)/16+(('Sıvılaşma Potansiyeli Analizi'!AS30+BT28-16)/21.2)^3-3))*(1+EXP(('Sıvılaşma Potansiyeli Analizi'!AS30+BT28)/2.4-6.6))),TAN(RADIANS(BW28))))) -> - | CD28: =IF(E28="","",IF(L28>=1.1,"-",IF(((EXP(('Sıvılaşma Potansiyeli Analizi'!AS30+BT28)/16+(('Sıvılaşma Potansiyeli Analizi'!AS30+BT28-16)/21.2)^3-3)))<=TAN(RADIANS(BW28)),((EXP(('Sıvılaşma Potansiyeli Analizi'!AS30+BT28)/16+(('Sıvılaşma Potansiyeli Analizi'!AS30+BT28-16)/21.2)^3-3))),TAN(RADIANS(BW28))))) -> - | CH28: =IF(E28="","",IF(L28="-","-",('Sıvılaşma Potansiyeli Analizi'!Z30*9.87*0.001))) -> 2.05271325 | CL28: =IF(E28="","",IF(L28>=1.1,"-",EXP(-8.444+0.109*'Sıvılaşma Potansiyeli Analizi'!AS30+5.379*(CH28^0.1))*101.33)) -> - | CR28: =IF(E28="","",IF(L28>=1.1,"-",(EXP((0.1292*'Sıvılaşma Potansiyeli Analizi'!AY30)+(4.322*('Sıvılaşma Potansiyeli Analizi'!Z30*0.01)^0.12)))*0.04788)) -> - | CX28: - | FW28: A | FY28: Sıvılaşma hasarı var
B29: =+IF('Sıvılaşma Potansiyeli Analizi'!B31="","",'Sıvılaşma Potansiyeli Analizi'!B31) -> 14- | E29: =+IF('Sıvılaşma Potansiyeli Analizi'!E31="","",'Sıvılaşma Potansiyeli Analizi'!E31) -> 21 | I29: =+IF('Sıvılaşma Potansiyeli Analizi'!F31="","",'Sıvılaşma Potansiyeli Analizi'!F31) -> 30 | L29: =+IF('Sıvılaşma Potansiyeli Analizi'!BY31="","",'Sıvılaşma Potansiyeli Analizi'!BY31) -> 1.504713368 | M29: =+IF('Sıvılaşma Potansiyeli Analizi'!CC31="","",'Sıvılaşma Potansiyeli Analizi'!CC31) -> Sıvılaşma Yok | X29: =IF(E29="","",IF(L29="-","-",IF('Sıvılaşma Potansiyeli Analizi'!AS31>30,0,MAX(0,MIN(0.5,1.859*(1.1-SQRT('Sıvılaşma Potansiyeli Analizi'!AY31/46))^3))))) -> 0.09727413007 | AC29: =IF(E29="","", IF(L29="-","-",IF('Sıvılaşma Potansiyeli Analizi'!AY31>30,0,0.032+0.69*SQRT(MAX(7,'Sıvılaşma Potansiyeli Analizi'!AY31))-0.13*MAX(7,'Sıvılaşma Potansiyeli Analizi'!AY31)))) -> 0.2777444442 | AH29: 0.01020427088 | AM29: =IF('Sıvılaşma Potansiyeli Analizi'!E31="","",IF('Sıvılaşma Potansiyeli Analizi'!BY31="-","-",IF('Sıvılaşma Potansiyeli Analizi'!BY31>1.1,0,IF('Sıvılaşma Potansiyeli Analizi'!E32="",('Sıvılaşma Potansiyeli Analizi'!$E$34-'Sıvılaşma Potansiyeli Analizi'!E31)+(('Sıvılaşma Potansiyeli Analizi'!E31-'Sıvılaşma Potansiyeli Analizi'!E30)/2),IF(AND(AM28=0,'Sıvılaşma Potansiyeli Analizi'!$AP$8<'Sıvılaşma Potansiyeli Analizi'!E31,'Sıvılaşma Potansiyeli Analizi'!$AP$8>='Sıvılaşma Potansiyeli Analizi'!E30),(('Sıvılaşma Potansiyeli Analizi'!E32-'Sıvılaşma Potansiyeli Analizi'!E31)/2)+('Sıvılaşma Potansiyeli Analizi'!E31-'Sıvılaşma Potansiyeli Analizi'!$AP$8),(('Sıvılaşma Potansiyeli Analizi'!E32-'Sıvılaşma Potansiyeli Analizi'!E31)/2)+(('Sıvılaşma Potansiyeli Analizi'!E31-'Sıvılaşma Potansiyeli Analizi'!E30)/2)))))) -> 0 | AR29: 0 | AW29: =IF(E29="","",IF(L29="-","-",IF(L29>2,0,IF('Sıvılaşma Potansiyeli Analizi'!AY31>30,0,1.5*EXP(-0.369*SQRT('Sıvılaşma Potansiyeli Analizi'!AY31))*MIN(0.08,AH29))))) -> 0.002487803168 | BB29: 0 | BF29: =IF(E29="","",IF(L29="-","-",(0.65*$EP$7*0.4*('Sıvılaşma Potansiyeli Analizi'!V31/'Sıvılaşma Potansiyeli Analizi'!Z31)*'Sıvılaşma Potansiyeli Analizi'!BQ31)/(2.5-0.2*$DS$7))) -> 0.2001020228 | BK29: =IF(E29="","",IF(L29="-","-",IF((BF29/'Sıvılaşma Potansiyeli Analizi'!AS31)>0.01,('Sıvılaşma Potansiyeli Analizi'!AS31^(-0.6)*10*0.01),"-"))) -> 0.01672202615 | BP29: 0 | BT29: =IF(E29="","",IF(L29="-","-",IF('Sıvılaşma Potansiyeli Analizi'!U31<10,1,IF('Sıvılaşma Potansiyeli Analizi'!U31<25,2,IF('Sıvılaşma Potansiyeli Analizi'!U31<50,4,5))))) -> 2 | BW29: =IF(E29="","",IF(L29="-","-",DEGREES(ATAN((I29/(12.2+(20.3*'Sıvılaşma Potansiyeli Analizi'!Z31/100)))^0.34)))) -> 38.76101409 | BZ29: =IF(E29="","",IF(L29>=1.1,"-",IF(((EXP(('Sıvılaşma Potansiyeli Analizi'!AS31+BT29)/16+(('Sıvılaşma Potansiyeli Analizi'!AS31+BT29-16)/21.2)^3-3))*(1+EXP(('Sıvılaşma Potansiyeli Analizi'!AS31+BT29)/2.4-6.6)))<=TAN(RADIANS(BW29)),((EXP(('Sıvılaşma Potansiyeli Analizi'!AS31+BT29)/16+(('Sıvılaşma Potansiyeli Analizi'!AS31+BT29-16)/21.2)^3-3))*(1+EXP(('Sıvılaşma Potansiyeli Analizi'!AS31+BT29)/2.4-6.6))),TAN(RADIANS(BW29))))) -> - | CD29: =IF(E29="","",IF(L29>=1.1,"-",IF(((EXP(('Sıvılaşma Potansiyeli Analizi'!AS31+BT29)/16+(('Sıvılaşma Potansiyeli Analizi'!AS31+BT29-16)/21.2)^3-3)))<=TAN(RADIANS(BW29)),((EXP(('Sıvılaşma Potansiyeli Analizi'!AS31+BT29)/16+(('Sıvılaşma Potansiyeli Analizi'!AS31+BT29-16)/21.2)^3-3))),TAN(RADIANS(BW29))))) -> - | CH29: =IF(E29="","",IF(L29="-","-",('Sıvılaşma Potansiyeli Analizi'!Z31*9.87*0.001))) -> 2.1887712 | CL29: =IF(E29="","",IF(L29>=1.1,"-",EXP(-8.444+0.109*'Sıvılaşma Potansiyeli Analizi'!AS31+5.379*(CH29^0.1))*101.33)) -> - | CR29: =IF(E29="","",IF(L29>=1.1,"-",(EXP((0.1292*'Sıvılaşma Potansiyeli Analizi'!AY31)+(4.322*('Sıvılaşma Potansiyeli Analizi'!Z31*0.01)^0.12)))*0.04788)) -> - | CX29: - | FW29: B | FY29: Sıvılaşma hasarı oluşabilir
B30: =+IF('Sıvılaşma Potansiyeli Analizi'!B32="","",'Sıvılaşma Potansiyeli Analizi'!B32) ->  | E30: =+IF('Sıvılaşma Potansiyeli Analizi'!E32="","",'Sıvılaşma Potansiyeli Analizi'!E32) ->  | I30: =+IF('Sıvılaşma Potansiyeli Analizi'!F32="","",'Sıvılaşma Potansiyeli Analizi'!F32) ->  | L30: =+IF('Sıvılaşma Potansiyeli Analizi'!BY32="","",'Sıvılaşma Potansiyeli Analizi'!BY32) ->  | M30: =+IF('Sıvılaşma Potansiyeli Analizi'!CC32="","",'Sıvılaşma Potansiyeli Analizi'!CC32) ->  | X30: =IF(E30="","",IF(L30="-","-",IF('Sıvılaşma Potansiyeli Analizi'!AS32>30,0,MAX(0,MIN(0.5,1.859*(1.1-SQRT('Sıvılaşma Potansiyeli Analizi'!AY32/46))^3))))) ->  | AC30: =IF(E30="","", IF(L30="-","-",IF('Sıvılaşma Potansiyeli Analizi'!AY32>30,0,0.032+0.69*SQRT(MAX(7,'Sıvılaşma Potansiyeli Analizi'!AY32))-0.13*MAX(7,'Sıvılaşma Potansiyeli Analizi'!AY32)))) ->  | AM30: =IF('Sıvılaşma Potansiyeli Analizi'!E32="","",IF('Sıvılaşma Potansiyeli Analizi'!BY32="-","-",IF('Sıvılaşma Potansiyeli Analizi'!BY32>1.1,0,IF('Sıvılaşma Potansiyeli Analizi'!E33="",('Sıvılaşma Potansiyeli Analizi'!$E$34-'Sıvılaşma Potansiyeli Analizi'!E32)+(('Sıvılaşma Potansiyeli Analizi'!E32-'Sıvılaşma Potansiyeli Analizi'!E31)/2),IF(AND(AM29=0,'Sıvılaşma Potansiyeli Analizi'!$AP$8<'Sıvılaşma Potansiyeli Analizi'!E32,'Sıvılaşma Potansiyeli Analizi'!$AP$8>='Sıvılaşma Potansiyeli Analizi'!E31),(('Sıvılaşma Potansiyeli Analizi'!E33-'Sıvılaşma Potansiyeli Analizi'!E32)/2)+('Sıvılaşma Potansiyeli Analizi'!E32-'Sıvılaşma Potansiyeli Analizi'!$AP$8),(('Sıvılaşma Potansiyeli Analizi'!E33-'Sıvılaşma Potansiyeli Analizi'!E32)/2)+(('Sıvılaşma Potansiyeli Analizi'!E32-'Sıvılaşma Potansiyeli Analizi'!E31)/2)))))) ->  | AW30: =IF(E30="","",IF(L30="-","-",IF(L30>2,0,IF('Sıvılaşma Potansiyeli Analizi'!AY32>30,0,1.5*EXP(-0.369*SQRT('Sıvılaşma Potansiyeli Analizi'!AY32))*MIN(0.08,AH30))))) ->  | BF30: =IF(E30="","",IF(L30="-","-",(0.65*$EP$7*0.4*('Sıvılaşma Potansiyeli Analizi'!V32/'Sıvılaşma Potansiyeli Analizi'!Z32)*'Sıvılaşma Potansiyeli Analizi'!BQ32)/(2.5-0.2*$DS$7))) ->  | BK30: =IF(E30="","",IF(L30="-","-",IF((BF30/'Sıvılaşma Potansiyeli Analizi'!AS32)>0.01,('Sıvılaşma Potansiyeli Analizi'!AS32^(-0.6)*10*0.01),"-"))) ->  | BT30: =IF(E30="","",IF(L30="-","-",IF('Sıvılaşma Potansiyeli Analizi'!U32<10,1,IF('Sıvılaşma Potansiyeli Analizi'!U32<25,2,IF('Sıvılaşma Potansiyeli Analizi'!U32<50,4,5))))) ->  | BW30: =IF(E30="","",IF(L30="-","-",DEGREES(ATAN((I30/(12.2+(20.3*'Sıvılaşma Potansiyeli Analizi'!Z32/100)))^0.34)))) ->  | BZ30: =IF(E30="","",IF(L30>=1.1,"-",IF(((EXP(('Sıvılaşma Potansiyeli Analizi'!AS32+BT30)/16+(('Sıvılaşma Potansiyeli Analizi'!AS32+BT30-16)/21.2)^3-3))*(1+EXP(('Sıvılaşma Potansiyeli Analizi'!AS32+BT30)/2.4-6.6)))<=TAN(RADIANS(BW30)),((EXP(('Sıvılaşma Potansiyeli Analizi'!AS32+BT30)/16+(('Sıvılaşma Potansiyeli Analizi'!AS32+BT30-16)/21.2)^3-3))*(1+EXP(('Sıvılaşma Potansiyeli Analizi'!AS32+BT30)/2.4-6.6))),TAN(RADIANS(BW30))))) ->  | CD30: =IF(E30="","",IF(L30>=1.1,"-",IF(((EXP(('Sıvılaşma Potansiyeli Analizi'!AS32+BT30)/16+(('Sıvılaşma Potansiyeli Analizi'!AS32+BT30-16)/21.2)^3-3)))<=TAN(RADIANS(BW30)),((EXP(('Sıvılaşma Potansiyeli Analizi'!AS32+BT30)/16+(('Sıvılaşma Potansiyeli Analizi'!AS32+BT30-16)/21.2)^3-3))),TAN(RADIANS(BW30))))) ->  | CH30: =IF(E30="","",IF(L30="-","-",('Sıvılaşma Potansiyeli Analizi'!Z32*9.87*0.001))) ->  | CL30: =IF(E30="","",IF(L30>=1.1,"-",EXP(-8.444+0.109*'Sıvılaşma Potansiyeli Analizi'!AS32+5.379*(CH30^0.1))*101.33)) ->  | CR30: =IF(E30="","",IF(L30>=1.1,"-",(EXP((0.1292*'Sıvılaşma Potansiyeli Analizi'!AY32)+(4.322*('Sıvılaşma Potansiyeli Analizi'!Z32*0.01)^0.12)))*0.04788)) ->  | CX30: - | DS30: Abak No:2 | FW30: C | FY30: Sıvılaşma hasarı yok
B31: Þ | E31: =+IF('Sıvılaşma Potansiyeli Analizi'!$E$34="","",'Sıvılaşma Potansiyeli Analizi'!$E$34) -> 19.5 | I31: Ü | K31: Sıvılaşmanın Bittiği Zemin Tabakası Başlangıç Derinliği, m | AM31: =+SUM(AR16:AV30) -> 6.461655129 | AW31: =+SUM(BB16:BE30) -> 0.5639637459 | BK31: =+SUM(BP16:BS30) -> 0.4140819797 | CX31: =+SUM(CX16:DD30) -> 16.55 | DG31: [Abakları kullanarak seçiminizi yapınız] | FW31: Abak-2 için açıklama
B33: NOTLAR : Hesaplamaların sorumluluğu kullanıcıya ait olup, Sıvılaşma Sonrası Oturma, Yanal Yayılma ve Kayma Dayanımı Kaybı hesap cetveline ait telif hakları, 5846 sayılı Fikir ve Sanat Eserleri Kanunu gereğince TMMOB Jeoloji Mühendisleri Odasına ait olup, izin almaksızın içeriğinde herhangi bir değişiklik yapılamaz. Hesap cetveli JMO logolu kullanılmak kaydıyla ücretsiz olarak herkesin kullanımına açıktır. Ancak Oda logosunun hesap cetvelinden çıkarılarak kullanılmasının tespit edilmesi durumunda 5846 sayılı kanun gereğince ilgili kişi hakkında gerekli hukuki yollara başvurulur.
D35: *- Bu Excel sayfasında yatay zemin yüzeyi, serbest zemin koşulları varsayımı ile sıvılaşma kaynaklı oturmalar, yanal deformasyonlar değerlendirilmektedir. Bu nedenle özellikle sahada topoğrafik eğimin olduğu durumda da yanal yayılma değerlendirilmeli, sıvılaşma kaynaklı şev duraylılığı değerlendirilmeli, yapıların olduğu durumlarda ise sıvılaşma kaynaklı temel-zemin göçmesi değerlendirmeleri ayrıca yapılmalıdır.
CX40: =IF(CX31>10,10,CX31) -> 10

Sheet Killerin sıvılaşma duyarlılığı
A1: Numune Derinliği m | B1: Doğal su içeriği, wn | C1: Likit Limit, LL | D1: Plastisite İndisi, PI | E1: wn / LL
A2: 1 | B2: 30 | C2: 40 | D2: 18 | E2: =IF(A2="",0,B2/C2) -> 0.75 | P2: IP>20 | S2: 0 | T2: 0.8
A3: 3 | B3: 35 | C3: 46 | D3: 16 | E3: =IF(A3="",0,B3/C3) -> 0.7608695652 | S3: 18 | T3: 0.8
A4: 6 | B4: 42 | C4: 42 | D4: 12 | E4: 1 | S4: 18 | T4: 1.4
A5: 8 | B5: 43 | C5: 45 | D5: 10 | E5: 0.9555555556
A6: 10 | B6: 35 | C6: 41 | D6: 15 | E6: 0.8536585366 | S6: PI | T6: wn/LL
A7: 12 | B7: 23 | C7: 38 | D7: 17 | E7: 0.6052631579 | S7: 0 | T7: 0.85
A8: 15 | B8: 25 | C8: 40 | D8: 10 | E8: 0.625 | S8: 12 | T8: 0.85
E9: 0 | S9: 12 | T9: 1.4
E10: 0 | P10: 12<IP≤20 wn/LL ≥ 0.80
E11: 0 | P11: Sıvılaşmaya kısmen hassas olup deneysel çalışma gerekli
E12: 0
E13: 0
E14: 0 | P14: IP<12 wn/LL ≥ 0.80
E15: 0
E16: 0
E17: 0
E18: 0
E19: 0
E20: 0 | G20: İnce taneli zeminlerin sıvılaşmaya karşı duyarlılığının değerlendirilmesi
E21: 0 | G21: Bray ve Sancio (2006) | J21: (Robertson ve Cabal, 2015)
A22: Turuncu kutucuklara veri girişini elle yapınız. | M22: PI | N22: wn/LL
F30: Plastisite İndisi (Ip)
S43: Gösterim
T44: LL
L48: Likit Limit (LL)
G49: İnce taneli zemin karışımlarında Seed vd. (2003) tarafından önerilen sıvılaşabilirlik koşulu (Seed vd., 2003)
I50: Kullanılan Numunelerin Plastisite Kartındaki Yeri, Seed ve diğ. (2003)

Sheet Tablolar (hidden)
A1: Düzeltme Katsayıları | C1: Değişken | G1: Değer | K1: USCS | N1: USCS | T1: 14688-2
A2: CR | C2: 3m ile 4m aralığında | G2: 0.75 | K2: W | L2: İyi Derecelenmiş | N2: G | O2: Çakıl | T2: Gr | V2: Sıvılaşma hasarı var.
C3: 4m ile 6m aralığında | G3: 0.85 | K3: P | L3: Kötü Derecelenmiş | N3: GW | O3: İyi Derecelenmiş Çakıl | T3: saGr | V3: Sıvılaşma hasarı oluşabilir.
C4: 6m ile 10m aralığında | G4: 0.95 | K4: L | L4: Düşük Plastisiteli | N4: GP | O4: Kötü Derecelenmiş Çakıl | T4: siGr | V4: Sıvılaşma hasarı yok.
C5: 10m'den derin | G5: 1 | K5: H | L5: Yüksek Plastisiteli | N5: GM | O5: Siltli Çakıl | T5: clGr
K6: O | L6: Organik | N6: GC | O6: Killi Çakıl | T6: sasiGr
A7: CS | C7: Standart (iç tüpü olan) | G7: 1 | K7: Pt | L7: Bataklık Turba | N7: SW | O7: İyi Derecelenmiş Kum | T7: saclGr | V7: Görülür
C8: İç tüpü olmayan | G8: 1.2 | N8: SP | O8: Kötü Derecelenmiş Kum | T8: Sa | V8: Görülmez
N9: SM | O9: Siltli Kum | T9: grSa
A10: CB | C10: Çap 65mm-115mm arasında | G10: 1 | N10: SC | O10: Killi Kum | T10: siSa
C11: Çap 150mm | G11: 1.05 | N11: SW-SC | T11: clSa
C12: Çap 200mm | G12: 1.15 | N12: SW-SM | T12: grsiSa
N13: SP-SC | T13: grclSa
A14: CE | C14: Güvenli tokmak | G14: 0.89 | N14: SP-SM | T14: Si
C15: Halkalı tokmak | G15: 0.75 | N15: GM-GC | T15: clSi
C16: Otomatik darbeli tokmak | G16: 1.25 | N16: GW-GC | T16: grSi
N17: GW-GM | T17: grclSi
A18: CN | C18: Kohezyon Var | N18: GP-GC | T18: saSi
C19: Kohezyon Yok | N19: GP-GM | T19: saclSi
N20: ML | O20: Düşük Plastisiteli Silt | T20: sagrSİ
N21: CL | O21: Düşük Plastisiteli Kil | T21: grsaSi
A22: tanf | B22: =+TAN(('Oturma-Yanal Yay. ve Muk. Kaybı'!BW16)*(PI()/180)) ->  | N22: OL | O22: Organik Siltler | T22: Cl
N23: MH | O23: Yüksek Plastisiteli Silt | T23: siCl
N24: CH | O24: Yüksek Plastisiteli Kil | T24: sasiCl
N25: OH | O25: Ortadan Yükseğe Plastisiteli Organik Killer | T25: saCl
N26: Pt | O26: Turba | T26: grCl
A27: ZD | N27: SM-SC | T27: grsiCl
A28: ZE | N28: - | T28: sagrCl
A29: ZF | T29: grsaCl
T30: grsasiS
T31: grsaclS
A32: DTS - 1 | T32: sagrsiS
A33: DTS - 1a | T33: sagrclS
A34: DTS - 2 | T34: Mg
A35: DTS - 2a | T35: saOr
A36: DTS - 3 | T36: siOr
A37: DTS - 3a | T37: clOr
A38: DTS - 4 | T38: orSi
A39: DTS - 4a | T39: orCl
A40: - | T40: orSa
T41: Bo
T42: Co
T43: boCo
T44: saCo
A45: ED 50-3° | T45: grCo
A46: ED 50-6° | T46: coBo
A47: WGS 84 | T47: sagrCo
A48: ITRF-3° | T48: -
A49: ITRF-6°
A52: amax = 0,2g için
A55: (Vs)30 değeri ile
A56: (N60)30 değeri ile
A57: (Cu)30 değeri ile
